Workbook

Sheet Disclaimer

Sheet INFO
A1: Intended use of this document Those responsible for the drafting of actual individual EPB standards shall - read and understand the following documents - prCEN/TS 16628 Basic Principles (in short "BP") - prCEN/TS 16629 Detailed Technical Rules (in short "DTR") - prEN 15603:2013 ("Overarching Standard", in short "OA")) - prCEN/TR 15615:2013 Technical report to overarching standard; - Prepare their individual EPB standard according to CEN rules, BP, DTR and OA - Prepare the accompanying technical report using the dedicated template - Prepare an accompanying XLS spreadsheet, to demonstrate inputs, output and calculation chain. This sample excel spreadsheet provides a template to help in this task.
A2: Why an Excel spradsheet? To demonstrate the validity and required data I/O for the calculation procedure defined in the standard: - list of all input needed --> sheet "Method_input" - list of intended output --> sheet "Method_output" - calculation sequence --> sheet "Method_calculation"
A3: The example is prepared for a simple procedure. The sheet calculation may need extensions such as: - using several columns when operating on arrays - refering to a subset of sheets input/calculation/output to describe a subroutine For complex tasks MACRO can be used. This sheet does not support calculation methods that take into account data in a different time-step than that that is being calculated. A version that allows taking into account values at previous time step will be developed.
A4: LIST OF AVAILABLE SHEETS
A5: Simplified_input_correlation Use this sheet to demontrate simplified input correlation, if any in your standard. Typically these correlations are defined in annex C of the standard. They provide the normal detailed input of a procedure, based on a simplified input data set.
A6: Product_descriptive_data Use this sheet to list product descriptive data (typically with case identifiers). Some examples of selection tables are given. The output from the selection tables (green cells) can be linked to the sheet "method_input" for use in the procedure.
A7: Product_tech_data Use this sheet to list product technical data (typically numerical values and data). Some examples are given with default that may be typically included in annex A of the standard. The output from the selection tables (green cells) can be linked to the sheet "method_input" for use in the procedure.
A8: Process_design_data Use this sheet to list system descriptive data (typically with case identifiers). Some examples of selection tables are given. The output from the selection tables (green cells) can be linked to the sheet "method_input" for use in the procedure.
A9: Data_catalogue_example It is an example of how a data catalogue can work, filtering the catalogue of product properties based on product descriptive data. You can optionally build a similar catalogue for products involved in your standard.
A10: Input_series Prepare in this sheet data for each time step if you want to test the procedure on more steps.
A11: Method_input List in this sheet all the input required for the calculation in one time step. THIS SHEET IS REQUIRED TO DEMONSTRATE THE REQUIRED DATA INPUT.
A12: Method_calculation Detail in this sheet your calculation procedure. There should be one calculation in one cell for each equation in the standard. THIS SHEET IS REQUIRED TO DEMONSTRATE THE CALCULATION PROCEDURE.
A13: Method_output List in this sheet all the intended output of the procedure. THIS SHEET IS REQUIRED TO DEMONSTRATE THE AVAILABLE DATA OUTPUT.
A14: Output_series Series alculation results are stored in this sheet. Calculation for each time step is launched in this sheet.

Sheet Product_descriptive_data
A1: Example of descriptive data. In a simple structure, this can be connected directly to the "method_input" sheet where this data is required. In this example spreadsheet the "Method_input" is linked to the "data_catalogue".
A6: Product descriptive data (qualitative)
A8: storage type
A9: 3 | B9: STO_H_TYPE | C9: =INDEX(C11:C14,A9) -> STO_H_ECH
A11: Storage only | C11: STO_H
A12: Storage with direct heating | C12: STO_H_DIR
A13: Storage with heat exhanger | C13: STO_H_ECH
A14: Storage with heat exhanger and additional back up | C14: STO_H_ECH_DIR
A17: Storage use
A18: 1 | B18: BLR_USE | C18: =INDEX(C20:C23,A18) -> STO_H_USE_H
A20: Heating | C20: STO_H_USE_H
A21: Domestic hot water | C21: STO_H_USE_W
A22: Heating + Domestic Hot Water | C22: STO_H_USE_H+W
A23: Cooling | C23: STO_C_USE
A26: Fuel
A27: 1 | B27: BLR_FUEL | C27: =INDEX(C29:C33,A27) -> STO_FUEL_HEX
A29: From heat exchanger | C29: STO_FUEL_HEX
A30: Heat exchanger (base + back up) | C30: STO_FUEL_HEX_HEX
A31: Heat Exchanger base + elctricity back up | C31: STO_FUEL_HEX_EL
A32: Electricity | C32: STO_FUEL_EL
A33: Electricity (base + back-up) | C33: STO_FUEL_EL_EL
A36: CE Marking
A37: 1 | B37: STO_H_CE | C37: =INDEX(C39:C40,A37) -> STO_H_DATA_YES
A39: Storage unit is marked CE | C39: STO_H_DATA_YES
A40: Storage unit is NOT marked CE | C40: STO_H_DATA_NO
A43: Storage control type
A44: 2 | B44: STO_CTRL_POW | C44: =INDEX(C46:C48,A44) -> STO_CTRL_POW_CRM
A46: Single thermostatic control (ON-OFF) | C46: STO_H_CTRL_POW_ONOF
A47: Thermostat and external signal authorization ( e.g. cost rflctiv message for dirct electrical heating) | C47: STO_CTRL_POW_CRM
A48: Other | C48: STO_CTRL_POW_OTH

Sheet Product_tech_data
A1: EXAMPLE OF A SHEET WITH DEFAULT INPUT Create here a simulation of each default data formula given in annex A of the standard. Optionally connect the selected values to the detailed input data selection sheet (detailed input)
A5: A.1.2.1 Storage volume (nominal); | B5: VSTO,H | C5: l | D5: 250
A6: Height | B6: LSTO,H,HGT | C6: m | D6: 1.52
A8: A.1.2.2 Standby losses | B8: QSTO,H,STBL | C8: W/K | D8: =INDEX(D17:D23,D25) -> 2.643627077
A11: Base formula
A14: Data table | B14: Standard | D14: Q_STO_STBL | E14: C1 | F14: C2 | G14: C3 | H14: C4 | I14: C5
A15: Data | D15: W/K
A16: Unit
A17: Direct Electrical Horizontal | B17: EN 60379 | D17: =(E17+F17*POWER($D$5,G17))*1000/H17/I17 -> 3.276851852 | E17: 0.939 | F17: 0.0104 | G17: 1 | H17: 45 | I17: 24
A18: Direct Electrical (Volume greater or equal to 75 liters) | B18: EN 60379 | D18: =(E18+F18*POWER($D$5,G18))*1000/H18/I18 -> 2.643627077 | E18: 0.224 | F18: 0.0663 | G18: =2/3 -> 0.6666666667 | H18: 45 | I18: 24
A19: Direct Electrical (Volume lower than 75 liters) | B19: EN12977-3 | D19: =(E19+F19*POWER($D$5,G19))*1000/H19/I19 -> 2.778475362 | E19: 0.1474 | F19: 0.0719 | G19: =2/3 -> 0.6666666667 | H19: 45 | I19: 24
A20: Solar storage | B20: EN 15332 | D20: =(E20+F20*POWER($D$5,G20))*1000/H20/I20 -> 2.529822128 | E20: 0 | F20: 0.16 | G20: 0.5 | H20: 1000 | I20: 1
A21: Other | B21: - | D21: =(E21+F21*POWER($D$5,G21))*1000/H21/I21 -> 3.646742122 | E21: 0 | F21: 0.189 | G21: 0.55 | H21: 45 | I21: 24
A22: My storage | D22: 3.8
A23: Default Storage | D23: 2.75
A24: Last storage
A25: Your selection | D25: 2
A28: A.1.2.3. Caracterisation of the energy input
A29: Temperature set point | B29: qSTO,H,VOL_1,set | C29: °C | D29: 60
A30: Direct Electrical Unit 1
C31: Unit | D31: Value
A32: Power | B32: PSTO_H_EL1 | C32: kW | D32: 3
A33: Altitude | B33: zSTO,H,EL1 | C33: z | D33: 1.23
A36: Heat Exchanger 1
A37: Transmission power | B37: USTO_H_HEX1 | C37: W/K | D37: 200
A38: Altitude min | B38: zSTO,H,HEX1,min | C38: m | D38: 0
A39: Altitud max | B39: zSTO,H,HEX1,max | C39: m | D39: 0.35
A40: Circulator power | B40: PSTO H,aux,1 | C40: kW | D40: 0.06
A41: Circulator mass flow | B41: DVSTO,H,aux1 | C41: m3/h | D41: 0.2
A43: Direct Electrical Unit 2
C44: Unit | D44: Value
A45: Power | B45: PSTO_H_EL2 | C45: kW | D45: 3
A46: Altitude | B46: zSTO,H,EL2 | C46: z | D46: 0
A47: Temperature set point | B47: qSTO,H,EL2,set | C47: °C | D47: 60
A49: Heat Exchanger 2
A50: Transmission power | B50: USTO_H_HEX2 | C50: W/K
A51: Altitude min | B51: zSTO,H,HEX2,min | C51: m | D51: 1.1
A52: Altitud max | B52: zSTO,H,HEX2,max | C52: m | D52: 1.4
A53: Circulator power | B53: PSTO H,aux,2 | C53: kW | D53: 0.06
A54: Circulator mass flow | B54: DVSTO,H,aux2 | C54: m3/h | D54: 0.3
A57: A.1.3. Information for modeling the storage unit
A59: Single volume fo the model
C60: Unit | D60: Value
A61: volume | B61: VSTO,H | C61: - | D61: 1
A62: Volume of part 1 | B62: VSTO,H,1 | C62: l | D62: =D5 -> 250
A63: Temperature set point | B63: qSTO_H_EL1_set | C63: °C | D63: 60
A65: 4 volumes considered ( Storage with heat exchanger in the lower part and direct electrical in the upper part | C65: Unit | D65: Value
A66: Number of volume | B66: NVOLSTO,H | C66: - | D66: 4
A67: Altitude of layer 1 | B67: zSTO,H,VOL,1 | C67: m | D67: =D39 -> 0.35
A68: Volume 1 | B68: VSTO,H,1 | C68: l | D68: =D$5*D67/$D6 -> 57.56578947
A69: Altitude of layer 2 | B69: zSTO_H_VOL,2 | C69: m | D69: =D67+D70/$D$5 -> 0.6394736842
A70: Volume 2 | B70: VSTO,H,2 | C70: l | D70: =(D$5-D$68-D$74)/2 -> 72.36842105
A71: Altitude of layer 3 | B71: zSTO_H_VOL,3 | C71: m | D71: =D69+D72/$D$5 -> 0.9289473684
A72: Volume 3 | B72: VSTO,H,3 | C72: l | D72: =(D$5-D$68-D$74)/2 -> 72.36842105
A73: Altitude of layer 4 | B73: zSTO_H_VOL,3 | C73: m | D73: =D33 -> 1.23
A74: Volume 4 | B74: VSTO,H,3 | C74: l | D74: =D$5*(D6-D73)/$D6 -> 47.69736842
D76: =D74+D72+D70+D68 -> 250 | E76: Sum (for check)
A131: generator output at full load;
A132: generator efficiency at full load;
A133: generator output at intermediate load;
A134: generator efficiency at intermediate load;
A135: stand-by heat loss at test temperature difference Dθi,test;
A136: power consumption of auxiliary devices at full load;
A137: power consumption of auxiliary devices at intermediate load;
A138: stand-by power consumption of auxiliary devices;
A139: minimum operating boiler temperature.
A140: Recoverable fraction of stand-by losses
A142: correction factor of full-load efficiency;
A143: correction factor of intermediate load efficiency;
A145: generator average water temperature at test conditions for full load;
A146: generator average water temperature at test conditions for intermediate load;
A147: difference between mean boiler temperature and test room temperature in test conditions;
A149: part of the auxiliary energy recovered
A150: part of the nominal electrical power not transmitted to the distribution sub-system

Sheet Process_design_data
A1: Example of process design data. In a simple structure, this can be connected directly to the "method_input" sheet where this data is required. In this example spreadsheet the "Method input" is linked to the detailed input.
A6: Process design data (qualitative)
A8: Storage location (installation position)
A9: 3 | B9: STO_H_LOC | C9: =INDEX(C11:C14,A9) -> STO_H_LOC_BLR | E9: qi,amb
E10: °C
A11: Heated space | C11: STO_H_LOC_INT | E11: 20
A12: Unheated room | C12: STO_H_LOC_UNH | E12: 5
A13: Storage (or boiler) room | C13: STO_H_LOC_BLR | E13: 15
A14: External | C14: STO_H_LOC_EXT | E14: -10
A15: Selected value | E15: =INDEX(E11:E14,$A$9) -> 15 | F15: °C
A18: Boiler hydraulic connection
A19: 2 | B19: STO_HCON | C19: =INDEX(C21:C24,A19) -> STO_HCON_HEX | E19: to be suppressed
A21: Direct connection | C21: STO_HCON_DIR
A22: Heat exchanger | C22: STO_HCON_HEX

Sheet Data_catalogue_example
A1: EXAMPLE OF A PRODUCT DATA CATALOGUE Product descriptive data is used to filter the actual catalogue. Unsuitable prioducts are indicated by "Non available" The desired product in the catalogue is then selected via the main list --> alla data is available with one click. NOTE: Default data are also part of the catalogue. This sample catalogue is connected to the "Method input" sheet. NOTE: This highlights the high importance of the user interface and of a correct data input structuring. | J1: DATA FOR EACH BOILER | W1: SELECTION OF BOILERS COMPATIBLE WITH THE QUALITATIVE DESCRIPTION
A4: Product descriptive data (qualitative)
A6: Boiler use
A7: 3 | C7: STO_USE | D7: =INDEX(D9:D11,A7) -> STO_USE_H_DHW
A9: Heating | D9: STO_USE_H
A10: Domestic hot water | D10: STO_USE_DHW
A11: Heating + Domestic Hot water | D11: STO_USE_H_DHW
A14: Fuel for main
A15: 4 | C15: STO_FUEL | D15: =INDEX(D17:D21,A15) -> STO_FUEL_EL
A16: Values
A17: Heat Echanger | D17: STO_FUEL_HEX
A18: Gas | D18: STO_FUEL_GAS
A19: Oil | D19: STO_FUEL_OIL
A20: Electricity | D20: STO_FUEL_EL
A21: Other | D21: STO_FUEL_OTH
A25: Fuel for Back-up
A26: 1 | C26: STO_FUEL_BKP | D26: =INDEX(D28:D33,A26) -> NO
A27: Values
A28: No Back up | D28: NO
A29: Heat Echanger | D29: STO_FUEL_BKP_HEX
A30: Gas | D30: STO_FUEL_BKP_GAS
A31: Oil | D31: STO_FUEL_BKP_OIL
A32: Electricity | D32: STO_FUEL_BKP_EL
A33: Other | D33: STO_FUEL_BKP_OTH
A37: Storage unit is marked CE | C37: STO_H_DATA_YES
A38: Storage unit is NOT marked CE | C38: STO_H_DATA_NO
A41: Storage control type
A42: 3 | B42: STO_CTRL_POW | C42: =INDEX(C44:C46,A42) -> STO_CTRL_POW_OTH
A44: Single thermostatic control (ON-OFF) | C44: STO_H_CTRL_POW_ONOF
A45: Thermostat and external signal authorization ( e.g. cost reflctive message for direct electrical heating) | C45: STO_CTRL_POW_CRM
A46: Other | C46: STO_CTRL_POW_OTH
A49: Product technical data
A51: Volume | E51: V_STO | F51: l | G51: 200
A54: System design data
A56: Localisation | C56: LOC | D56: =INDEX(D59:D62,C57) -> LOC_BLR
C57: 3
A58: Values
A59: Heated space | D59: LOC_INT
A60: Unheated space | D60: LOC_UNH
A61: Boiler room | D61: LOC_BLR
A62: External | D62: LOC_EXT
A65: Operating conditions
A68: Direct connection
A69: Heat exchanger
A74: Description | C74: Variable TAG | D74: Option tag | E74: Symbol | F74: Unit | G74: Value | H74: Range
A75: Volume | E75: ФPn | F75: l | G75: 200 | H75: 0-1000 | J75: =+$G$51 -> 200 | K75: 200 | L75: 200 | M75: 200 | N75: 200 | O75: 200 | P75: 200 | Q75: 200 | R75: 200 | S75: 45 | T75: 30 | U75: =+$G$51 -> 200
A76: Height | F76: m | G76: 1.52 | H76: 0-5 | J76: BLR_COND_NO | K76: BLR_COND_NO | L76: BLR_COND_YES | M76: BLR_COND_NO | N76: BLR_COND_NO | O76: BLR_COND_YES | P76: BLR_COND_NO | Q76: BLR_COND_NO | R76: BLR_COND_NO | S76: BLR_COND_NO | T76: BLR_COND_NO | U76: BLR_COND_YES
A77: Use Type | G77: =INDEX(D9:D11,A7) -> STO_USE_H_DHW
A78: Fuel type | G78: =INDEX(D17:D21,A15) -> STO_FUEL_EL
A79: CE marking | G79: =INDEX(C37:C38,A35) -> 
E80: C1 | G80: 0.224 | J80: 0.224
E81: C2 | G81: 0.0663 | J81: 0.0663
E82: C3 | G82: =2/3 -> 0.6666666667 | J82: =2/3 -> 0.6666666667
E83: C4 | G83: 45 | J83: 45
E84: C5 | G84: 24 | J84: 24
A85: Stanby losses transmission coefficient | E85: QSTO_STBL | F85: W/K | G85: =1000/G83/G84*(G80+G81*POWER(G75,G82)) -> 2.306877875
A86: Direct Electrical Unit 1
A88: Power | E88: PSTO,H,EL,1 | F88: kW | G88: 3
A89: Altitude | E89: zSTO,H,EL1 | F89: z | G89: 0
A91: Temperature set point | E91: qSTO,H,set,1 | F91: °C | G91: 60
A94: Heat Exchanger 1
A95: Transmission power | E95: USTO_H_HEX1_U | F95: W/K | G95: 200
A96: Altitude min | B96: to be changed into index to adress the correct volume | E96: zSTO_H_HEX1_min | F96: m | G96: 0 | J96: 0.48 | K96: 0.48 | L96: 0.48 | M96: 0.48 | N96: 0.48 | O96: 0.48 | P96: 0.48 | Q96: 0.48 | R96: 0.48
A97: Altitud max | B97: to be changed into index to adress the correct volume | G97: 0.35 | J97: =(+J94+J95*J75^J96)/1000 -> 0 | K97: 0 | L97: 0 | M97: =(+M94+M95*M75^M96)/1000 -> 0 | N97: =(+N94+N95*N75^N96)/1000 -> 0 | O97: =(+O94+O95*O75^O96)/1000 -> 0 | P97: 0 | Q97: 0 | R97: 0 | S97: 0.3 | T97: 0.4 | U97: 0.6
A98: Circulator power | E98: PSTO H,aux,1 | F98: kW | G98: 0 | J98: 0 | K98: 0 | L98: 0 | M98: 0 | N98: 0 | O98: 0 | P98: 0 | Q98: 0 | R98: 0
A99: Circulator mass flow | E99: DVSTO,H,HX1 | F99: m3/h | G99: 0 | J99: 15 | K99: 15 | L99: 15 | M99: 15 | N99: 15 | O99: 15 | P99: 15 | Q99: 15 | R99: 15
J100: 0.48 | K100: 0.48 | L100: 0.48 | M100: 0.48 | N100: 0.48 | O100: 0.48 | P100: 0.48 | Q100: 0.48 | R100: 0.48
J101: =(+J98+J99*J86^J100)/1000 -> 0 | K101: 0 | L101: 0 | M101: =(+M98+M99*M86^M100)/1000 -> 0 | N101: =(+N98+N99*N86^N100)/1000 -> 0 | O101: =(+O98+O99*O86^O100)/1000 -> 0 | P101: 0 | Q101: 0 | R101: 0 | S101: 0.1 | T101: 0.07 | U101: 0.05
J102: 15 | K102: 15 | L102: 15 | M102: 15 | N102: 15 | O102: 15 | P102: 15 | Q102: 15 | R102: 15
J103: 0 | K103: 0 | L103: 0 | M103: 0 | N103: 0 | O103: 0 | P103: 0 | Q103: 0 | R103: 0
J104: 0 | K104: 0 | L104: 0 | M104: 0 | N104: 0 | O104: 0 | P104: 0 | Q104: 0 | R104: 0
J105: =(+J102+J103*J91^J104)/1000 ->  | S105: 0 | T105: 0 | U105: 0
J106: 0 | K106: 0 | L106: 0 | M106: 0 | N106: 0 | O106: 0 | P106: 0 | Q106: 0 | R106: 0 | S106: 0 | T106: 0 | U106: 0
J107: 50 | K107: 30 | L107: 0 | M107: 50 | N107: 30 | O107: 0 | P107: 50 | Q107: 50 | R107: 50 | S107: 50 | T107: 50 | U107: 50
J108: 0.5 | K108: 0.5 | L108: 0.5 | M108: 0.5 | N108: 0.5 | O108: 0.5 | P108: 0.5 | Q108: 0.5 | R108: 0.5 | S108: 0.5 | T108: 0.5 | U108: 0.5
J110: 0.04 | K110: 0.04 | L110: 0.2 | M110: 0.04 | N110: 0.04 | O110: 0.2 | P110: 0.04 | Q110: 0.04 | R110: 0.1 | S110: 0.04 | T110: 0.04 | U110: 0.04
J111: 0.05 | K111: 0.05 | L111: 0.2 | M111: 0.05 | N111: 0.05 | O111: 0.2 | P111: 0.05 | Q111: 0.05 | R111: 0.05 | S111: 0.05 | T111: 0.05 | U111: 0.05
J113: 70 | K113: 70 | L113: 70 | M113: 70 | N113: 70 | O113: 70 | P113: 70 | Q113: 70 | R113: 70 | S113: 70 | T113: 70 | U113: 70
J114: 50 | K114: 40 | L114: 30 | M114: 50 | N114: 40 | O114: 30 | P114: 50 | Q114: 50 | R114: 50 | S114: 50 | T114: 50 | U114: 50
A115: part of the thermal losses energy recovered | E115: frvd,sto,stbl | F115: - | G115: 1 | H115: 0 …. 1 | J115: 50 | K115: 50 | L115: 50 | M115: 50 | N115: 50 | O115: 50 | P115: 50 | Q115: 50 | R115: 50 | S115: 50 | T115: 50 | U115: 50
A116: part of the thermal losses not recovered | E116: frbl,sto,stbl | F116: - | G116: 0 | H116: 0 …. 1
A117: part of the auxiliary energy recovered | E117: frvd,aux | F117: - | G117: 0.75 | H117: 0 …. 1 | J117: 0.75 | K117: 0.75 | L117: 0.75 | M117: 0.75 | N117: 0.75 | O117: 0.75 | P117: 0.75 | Q117: 0.75 | R117: 0.75 | S117: 0.75 | T117: 0.75 | U117: 0.75
A118: part of the nominal electrical power not transmitted to the distribution sub-system | E118: frbl,aux | F118: - | G118: 0.25 | H118: 0 …. 1 | J118: 0.25 | K118: 0.25 | L118: 0.25 | M118: 0.25 | N118: 0.25 | O118: 0.25 | P118: 0.25 | Q118: 0.25 | R118: 0.25 | S118: 0.25 | T118: 0.25 | U118: 0.25
A119: Reduction due to room location | E119: storm | G119: 0.7 | H119: 0 …..1
A123: System design data
A124: Installation room temperature; | E124: qi,amb | F124: °C | G124: 15

Sheet Input_series
A1: Load here the value of input variables for each time-step (time series) Set the number of input data for each time steps and the number of time step before running The macro from sheet "Output series". Local constant data may be input via the sheets "Constants"
A3: Time series for data input
A4: Settings
A5: Number of input data | C5: 16
A6: Number of time steps | C6: 79
A8: Description | C8: Calculation interval duration | D8: Energy required for heating | E8: Temperature required for heating | F8: Energy required for DHW | G8: Temperature required for DHW | H8: Input from generation | I8: Input temperature (to heat exchanger) | J8: Output water temperature (from heat exchanger) | K8: Room temperature | L8: Input temperature for DWH | M8: Electrical power availability | N8: Temperature layer 1 | O8: Temperature layer 2 | P8: Temperature Layer 3 | Q8: Temperature Layer 4
A9: Symbol | C9: tci | D9: Esto,dis,H | E9: qsto,dis,H | F9: Esto,dis,W | G9: qsto,dis,W | H9: Qgen,sto,in | I9: qsto,gen,in | J9: qsto,gn,out | K9: qamb | L9: qsto,in,W | M9: E_El_ON | N9: qsto,vol,1 | O9: qsto,vol_2 | P9: qsto,vol_3 | Q9: qsto,vol_4
A10: Unit | C10: h | D10: kWh | E10: °C | F10: kWh | G10: °C | H10: kWh | I10: °C | J10: °C | K10: °C | L10: °C | M10: Y/N | N10: °C | O10: °C | P10: °C | Q10: °C
A11: Origin | B11: 15316-3-1 | C11: h | D11: x | E11: x | F11: x | I11: x | J11: x | K11: x | M11: 1/0
A12: Origin | B12: 15316-3-3 | C12: h | F12: x | G12: x | K12: x | L12: x | M12: 1/0
A15: Time stamp | B15: Type of USE | E15: VALUES
A16: 1 | B16: STO_USE_DEL | C16: 1 | D16: 0 | E16: 40 | F16: 0 | G16: 40 | H16: 3.4 | I16: 50 | J16: 40 | K16: 15 | L16: 12 | M16: 1 | N16: 65 | O16: 65 | P16: 65 | Q16: 65
A17: 2 | B17: STO_USE_DEL | C17: =+C16 -> 1 | D17: 0 | E17: 50 | F17: 0 | G17: 40 | H17: 3.4 | I17: 60 | J17: =+I17-10 -> 50 | K17: 15 | L17: 12 | M17: 1 | N17: =+Output_series!L18 -> 65 | O17: =+Output_series!K18 -> 65 | P17: =+Output_series!J18 -> 65 | Q17: =+Output_series!I18 -> 65
A18: 3 | B18: STO_USE_DEL | C18: =+C17 -> 1 | D18: 0 | E18: =+E17 -> 50 | F18: 0 | G18: 40 | H18: 3.4 | I18: 55 | J18: 45 | K18: 15 | L18: 12 | M18: 1 | N18: =+Output_series!L19 -> 65 | O18: =+Output_series!K19 -> 65 | P18: =+Output_series!J19 -> 65 | Q18: =+Output_series!I19 -> 65
A19: 4 | B19: STO_USE_DEL | C19: 1 | D19: 0 | E19: 50 | F19: 0 | G19: 40 | H19: 3.4 | I19: 50 | J19: 40 | K19: 15 | L19: 12 | M19: 1 | N19: =+Output_series!L20 -> 65 | O19: =+Output_series!K20 -> 65 | P19: =+Output_series!J20 -> 65 | Q19: =+Output_series!I20 -> 65
A20: 5 | B20: STO_USE_SBY | C20: 1 | D20: 0 | E20: 50 | F20: 0 | G20: 40 | H20: 3.4 | I20: 50 | J20: 40 | K20: 15 | L20: 12 | M20: 1 | N20: =+Output_series!L21 -> 65 | O20: =+Output_series!K21 -> 65 | P20: =+Output_series!J21 -> 65 | Q20: =+Output_series!I21 -> 65
A21: 6 | B21: STO_USE_STO | C21: 1 | D21: 0 | E21: 50 | F21: 0 | G21: 40 | H21: 3.4 | I21: 50 | J21: 40 | K21: 15 | L21: 12 | M21: 1 | N21: =+Output_series!L22 -> 65 | O21: =+Output_series!K22 -> 65 | P21: =+Output_series!J22 -> 65 | Q21: =+Output_series!I22 -> 65
A22: 7 | B22: STO_USE_STO | C22: 1 | D22: 0 | E22: 50 | F22: 0 | G22: 40 | H22: 3.4 | I22: 50 | J22: 40 | K22: 15 | L22: 12 | M22: 1 | N22: =+Output_series!L23 -> 65 | O22: =+Output_series!K23 -> 65 | P22: =+Output_series!J23 -> 65 | Q22: =+Output_series!I23 -> 65
A23: 8 | B23: STO_USE_STO | C23: 1 | D23: 0 | E23: 50 | F23: 1.61 | G23: 40 | H23: 3.4 | I23: 60 | J23: 50 | K23: 15 | L23: 12 | M23: 0 | N23: =+Output_series!L24 -> 65 | O23: =+Output_series!K24 -> 65 | P23: =+Output_series!J24 -> 65 | Q23: =+Output_series!I24 -> 65
A24: 9 | B24: STO_USE_DELSTO | C24: 1 | D24: 0 | E24: 50 | F24: 0.42 | G24: 40 | H24: 3.4 | I24: 0 | J24: 0 | K24: 15 | L24: 12 | M24: 0 | N24: =+Output_series!L25 -> 36.82297612 | O24: =+Output_series!K25 -> 64.58159681 | P24: =+Output_series!J25 -> 62.61754345 | Q24: =+Output_series!I25 -> 62.61754345
A25: 10 | B25: STO_USE_DELSTO | C25: =+C24 -> 1 | D25: 0 | E25: 50 | F25: 0.21 | G25: 40 | H25: 3.4 | I25: 60 | J25: =+I25-10 -> 50 | K25: 15 | L25: 12 | M25: 0 | N25: =+Output_series!L26 -> 32.87614086 | O25: =+Output_series!K26 -> 60.21478629 | P25: =+Output_series!J26 -> 62.50287839 | Q25: =+Output_series!I26 -> 61.98136516
A26: 11 | B26: STO_USE_DELSTO | C26: 1 | D26: 0 | E26: 50 | F26: 0.105 | G26: 40 | H26: 3.4 | I26: 55 | J26: =+I26-10 -> 45 | K26: 15 | L26: 12 | M26: 0 | N26: =+Output_series!L27 -> 30.98111747 | O26: =+Output_series!K27 -> 57.85161395 | P26: =+Output_series!J27 -> 61.95438796 | Q26: =+Output_series!I27 -> 61.64846256
A27: 12 | B27: STO_USE_DELSTO | C27: 1 | D27: 0 | E27: 50 | F27: 0.21 | G27: 40 | H27: 3.4 | I27: 50 | J27: =+I27-10 -> 40 | K27: 15 | L27: 12 | M27: 0 | N27: =+Output_series!L28 -> 29.91457106 | O27: =+Output_series!K28 -> 56.49739506 | P27: =+Output_series!J28 -> 61.43035446 | Q27: =+Output_series!I28 -> 61.28508801
A28: 13 | B28: STO_USE_DELSTO | C28: 1 | D28: 0 | E28: 50 | F28: 0.315 | G28: 40 | H28: 3.4 | I28: 0 | J28: 0 | K28: 15 | L28: 12 | M28: 0 | N28: =+Output_series!L29 -> 28.23772866 | O28: =+Output_series!K29 -> 54.18374638 | P28: =+Output_series!J29 -> 60.70719581 | Q28: =+Output_series!I29 -> 60.55421568
A29: 14 | B29: STO_USE_DELSTO | C29: =+C28 -> 1 | D29: 0 | E29: 60 | F29: 0 | G29: 40 | H29: 3.4 | I29: 60 | J29: =+I29-10 -> 50 | K29: 15 | L29: 12 | M29: 0 | N29: =+Output_series!L30 -> 26.07963331 | O29: =+Output_series!K30 -> 50.93972981 | P29: =+Output_series!J30 -> 59.63569169 | Q29: =+Output_series!I30 -> 59.48473127
A30: 15 | B30: STO_USE_DELSTO | C30: 1 | D30: 0 | E30: 60 | F30: 0.105 | G30: 40 | H30: 3.4 | I30: 55 | J30: =+I30-10 -> 45 | K30: 15 | L30: 12 | M30: 0 | N30: =+Output_series!L31 -> 25.74092744 | O30: =+Output_series!K31 -> 50.60102395 | P30: =+Output_series!J31 -> 59.29698582 | Q30: =+Output_series!I31 -> 59.25924572
A31: 16 | B31: STO_USE_DELSTO | C31: 1 | D31: 0 | E31: 60 | F31: 0.105 | G31: 40 | H31: 3.4 | I31: 50 | J31: =+I31-10 -> 40 | K31: 15 | L31: 12 | M31: 0 | N31: =+Output_series!L32 -> 24.88449513 | O31: =+Output_series!K32 -> 49.31865318 | P31: =+Output_series!J32 -> 58.6338094 | Q31: =+Output_series!I32 -> 58.61897999
A32: 17 | B32: STO_USE_DELSTO | C32: 1 | D32: 0 | E32: 50 | F32: 0.105 | G32: 40 | H32: 3.4 | I32: 0 | J32: 0 | K32: 15 | L32: 12 | M32: 0 | N32: =+Output_series!L33 -> 24.06270698 | O32: =+Output_series!K33 -> 48.04835946 | P32: =+Output_series!J33 -> 57.95062862 | Q32: =+Output_series!I33 -> 57.96283368
A33: 18 | B33: STO_USE_DELSTO | C33: =+C32 -> 1 | D33: 0 | E33: 60 | F33: 0.105 | G33: 40 | H33: 3.4 | I33: 60 | J33: =+I33-10 -> 50 | K33: 15 | L33: 12 | M33: 0 | N33: =+Output_series!L34 -> 23.27461907 | O33: =+Output_series!K34 -> 46.79066076 | P33: =+Output_series!J34 -> 57.2476342 | Q33: =+Output_series!I34 -> 57.33622808
A34: 19 | B34: STO_USE_DELSTO | C34: =+C33 -> 1 | D34: 0 | E34: =+E33 -> 60 | F34: 0.21 | G34: 40 | H34: 3.4 | I34: 55 | J34: =+I34-10 -> 45 | K34: 15 | L34: 12 | M34: 0 | N34: =+Output_series!L35 -> 22.51976572 | O34: =+Output_series!K35 -> 45.5469887 | P34: =+Output_series!J35 -> 56.52543068 | Q34: =+Output_series!I35 -> 56.73864069
A35: 20 | B35: STO_USE_DELSTO | C35: 1 | D35: 0 | E35: 60 | F35: 0.105 | G35: 40 | H35: 3.4 | I35: 55 | J35: =+I35-10 -> 45 | K35: 15 | L35: 12 | M35: 0 | N35: =+Output_series!L36 -> 21.37710498 | O35: =+Output_series!K36 -> 43.39210183 | P35: =+Output_series!J36 -> 55.34564936 | Q35: =+Output_series!I36 -> 55.90198568
A36: =A35+1 -> 21 | B36: STO_USE_DELSTO | C36: 1 | D36: 0 | E36: 60 | F36: 0.735 | G36: 40 | H36: 3.4 | I36: 55 | J36: =+I36-10 -> 45 | K36: 15 | L36: 12 | M36: 0 | N36: =+Output_series!L37 -> 20.70707677 | O36: =+Output_series!K37 -> 42.20093678 | P36: =+Output_series!J37 -> 54.56937881 | Q36: =+Output_series!I37 -> 55.37525768
A37: =A36+1 -> 22 | B37: STO_USE_DELSTO | C37: 1 | D37: 0 | E37: 60 | F37: 1.505 | G37: 40 | H37: 3.4 | I37: 55 | J37: 45 | K37: 15 | L37: 12 | M37: 0 | N37: =+Output_series!L38 -> 17.91752214 | O37: =+Output_series!K38 -> 35.67562548 | P37: =+Output_series!J38 -> 50.71012828 | Q37: =+Output_series!I38 -> 53.55911953
A38: 23 | B38: STO_USE_DELSTO | C38: 1 | D38: 0 | E38: 60 | F38: 0 | G38: 40 | H38: 3.4 | I38: 55 | J38: 45 | K38: 15 | L38: 12 | M38: 1 | N38: =+Output_series!L39 -> 14.04513142 | O38: =+Output_series!K39 -> 24.41032868 | P38: =+Output_series!J39 -> 41.14536649 | Q38: =+Output_series!I39 -> 51.15924512
A39: 24 | B39: STO_USE_DELSTO | C39: 1 | D39: 0 | E39: 60 | F39: 0 | G39: 40 | H39: 3.4 | I39: 55 | J39: 45 | K39: 15 | L39: 12 | M39: 1 | N39: =+Output_series!L40 -> 45.75221632 | O39: =+Output_series!K40 -> 45.75221632 | P39: =+Output_series!J40 -> 45.75221632 | Q39: =+Output_series!I40 -> 50.83762269
A40: 25 | B40: STO_USE_DELSTO | C40: 1 | D40: 0 | E40: 40 | F40: 0 | G40: 40 | H40: 3.4 | I40: 50 | J40: 40 | K40: 15 | L40: 12 | M40: 1 | N40: =+Output_series!L41 -> 61.21459311 | O40: =+Output_series!K41 -> 61.21459311 | P40: =+Output_series!J41 -> 61.21459311 | Q40: =+Output_series!I41 -> 61.21459311
A41: 26 | B41: STO_USE_DELSTO | C41: 1 | D41: 0 | E41: 50 | F41: 0 | G41: 40 | H41: 3.4 | I41: 60 | J41: =+I41-10 -> 50 | K41: 15 | L41: 12 | M41: 1 | N41: =+Output_series!L42 -> 65 | O41: =+Output_series!K42 -> 65 | P41: =+Output_series!J42 -> 65 | Q41: =+Output_series!I42 -> 65
A42: 27 | B42: STO_USE_DELSTO | C42: 1 | D42: 0 | E42: =+E41 -> 50 | F42: 0 | G42: 40 | H42: 3.4 | I42: 55 | J42: 45 | K42: 15 | L42: 12 | M42: 1 | N42: =+Output_series!L43 -> 65 | O42: =+Output_series!K43 -> 65 | P42: =+Output_series!J43 -> 65 | Q42: =+Output_series!I43 -> 65
A43: 28 | B43: STO_USE_DELSTO | C43: 1 | D43: 0 | E43: 50 | F43: 0 | G43: 40 | H43: 3.4 | I43: 50 | J43: 40 | K43: 15 | L43: 12 | M43: 1 | N43: =+Output_series!L44 -> 65 | O43: =+Output_series!K44 -> 65 | P43: =+Output_series!J44 -> 65 | Q43: =+Output_series!I44 -> 65
A44: 29 | B44: STO_USE_DELSTO | C44: 1 | D44: 0 | E44: 50 | F44: 0 | G44: 40 | H44: 3.4 | I44: 50 | J44: 40 | K44: 15 | L44: 12 | M44: 1 | N44: =+Output_series!L45 -> 65 | O44: =+Output_series!K45 -> 65 | P44: =+Output_series!J45 -> 65 | Q44: =+Output_series!I45 -> 65
A45: 30 | B45: STO_USE_DELSTO | C45: 1 | D45: 0 | E45: 50 | F45: 0 | G45: 40 | H45: 3.4 | I45: 50 | J45: 40 | K45: 15 | L45: 12 | M45: 1 | N45: =+Output_series!L46 -> 65 | O45: =+Output_series!K46 -> 65 | P45: =+Output_series!J46 -> 65 | Q45: =+Output_series!I46 -> 65
A46: 31 | B46: STO_USE_DELSTO | C46: 1 | D46: 0 | E46: 50 | F46: 0.21 | G46: 40 | H46: 3.4 | I46: 50 | J46: 40 | K46: 15 | L46: 12 | M46: 1 | N46: =+Output_series!L47 -> 65 | O46: =+Output_series!K47 -> 65 | P46: =+Output_series!J47 -> 65 | Q46: =+Output_series!I47 -> 65
A47: 32 | C47: 1 | D47: 0 | E47: 50 | F47: 0.105 | G47: 40 | H47: 3.4 | I47: 60 | J47: 50 | K47: 15 | L47: 12 | M47: 0 | N47: =+Output_series!L48 -> 65 | O47: =+Output_series!K48 -> 65 | P47: =+Output_series!J48 -> 65 | Q47: =+Output_series!I48 -> 65
A48: 33 | C48: 1 | D48: 0 | E48: 50 | F48: 0.105 | G48: 40 | H48: 3.4 | I48: 0 | J48: 0 | K48: 15 | L48: 12 | M48: 0 | N48: =+Output_series!L49 -> 62.69762031 | O48: =+Output_series!K49 -> 64.50796514 | P48: =+Output_series!J49 -> 64.3798747 | Q48: =+Output_series!I49 -> 64.3798747
A49: 34 | C49: 1 | D49: 0 | E49: 50 | F49: 0 | G49: 40 | H49: 3.4 | I49: 60 | J49: =+I49-10 -> 50 | K49: 15 | L49: 12 | M49: 0 | N49: =+Output_series!L50 -> 63.79938645 | O49: =+Output_series!K50 -> 63.79938645 | P49: =+Output_series!J50 -> 63.79938645 | Q49: =+Output_series!I50 -> 63.79938645
A50: 35 | C50: 1 | D50: 0 | E50: 50 | F50: 0.21 | G50: 40 | H50: 3.4 | I50: 55 | J50: =+I50-10 -> 45 | K50: 15 | L50: 12 | M50: 0 | N50: =+Output_series!L51 -> 63.31415272 | O50: =+Output_series!K51 -> 63.31415272 | P50: =+Output_series!J51 -> 63.31415272 | Q50: =+Output_series!I51 -> 63.31415272
A51: 36 | C51: 1 | D51: 0 | E51: 50 | F51: 0.315 | G51: 50 | H51: 3.4 | I51: 50 | J51: =+I51-10 -> 40 | K51: 15 | L51: 12 | M51: 0 | N51: =+Output_series!L52 -> 59.22322241 | O51: =+Output_series!K52 -> 62.84391206 | P51: =+Output_series!J52 -> 62.60905281 | Q51: =+Output_series!I52 -> 62.60905281
A52: 37 | C52: 1 | D52: 0 | E52: 50 | F52: 0 | G52: 40 | H52: 3.4 | I52: 0 | J52: 0 | K52: 15 | L52: 12 | M52: 0 | N52: =+Output_series!L53 -> 53.70511968 | O52: =+Output_series!K53 -> 62.00494965 | P52: =+Output_series!J53 -> 61.83926155 | Q52: =+Output_series!I53 -> 61.83926155
A53: 38 | C53: 1 | D53: 0 | E53: 60 | F53: 0 | G53: 40 | H53: 3.4 | I53: 60 | J53: =+I53-10 -> 50 | K53: 15 | L53: 12 | M53: 0 | N53: =+Output_series!L54 -> 61.4555385 | O53: =+Output_series!K54 -> 61.4555385 | P53: =+Output_series!J54 -> 61.4555385 | Q53: =+Output_series!I54 -> 61.4555385
A54: 39 | C54: 1 | D54: 0 | E54: 60 | F54: 0 | G54: 40 | H54: 3.4 | I54: 55 | J54: =+I54-10 -> 45 | K54: 15 | L54: 12 | M54: 0 | N54: =+Output_series!L55 -> 60.99361068 | O54: =+Output_series!K55 -> 60.99361068 | P54: =+Output_series!J55 -> 60.99361068 | Q54: =+Output_series!I55 -> 60.99361068
A55: 40 | C55: 1 | D55: 0 | E55: 60 | F55: 0 | G55: 40 | H55: 3.4 | I55: 50 | J55: =+I55-10 -> 40 | K55: 15 | L55: 12 | M55: 0 | N55: =+Output_series!L56 -> 60.53627601 | O55: =+Output_series!K56 -> 60.53627601 | P55: =+Output_series!J56 -> 60.53627601 | Q55: =+Output_series!I56 -> 60.53627601
A56: 41 | C56: 1 | D56: 0 | E56: 50 | F56: 0 | G56: 40 | H56: 3.4 | I56: 0 | J56: 0 | K56: 15 | L56: 12 | M56: 0 | N56: =+Output_series!L57 -> 60.08348882 | O56: =+Output_series!K57 -> 60.08348882 | P56: =+Output_series!J57 -> 60.08348882 | Q56: =+Output_series!I57 -> 60.08348882
A57: 42 | C57: 1 | D57: 0 | E57: 60 | F57: 0.21 | G57: 40 | H57: 3.4 | I57: 60 | J57: =+I57-10 -> 50 | K57: 15 | L57: 12 | M57: 0 | N57: =+Output_series!L58 -> 59.6352039 | O57: =+Output_series!K58 -> 59.6352039 | P57: =+Output_series!J58 -> 59.6352039 | Q57: =+Output_series!I58 -> 59.6352039
A58: 43 | C58: 1 | D58: 0 | E58: =+E57 -> 60 | F58: 0 | G58: 40 | H58: 3.4 | I58: 55 | J58: =+I58-10 -> 45 | K58: 15 | L58: 12 | M58: 0 | N58: =+Output_series!L59 -> 55.58059761 | O58: =+Output_series!K59 -> 59.20128726 | P58: =+Output_series!J59 -> 59.01819744 | Q58: =+Output_series!I59 -> 59.01819744
A59: 44 | C59: 1 | D59: 0 | E59: 60 | F59: 0.42 | G59: 50 | H59: 3.4 | I59: 55 | J59: =+I59-10 -> 45 | K59: 15 | L59: 12 | M59: 0 | N59: =+Output_series!L60 -> 58.67113981 | O59: =+Output_series!K60 -> 58.67113981 | P59: =+Output_series!J60 -> 58.67113981 | Q59: =+Output_series!I60 -> 58.67113981
A60: 45 | C60: 1 | D60: 0 | E60: 60 | F60: 0.525 | G60: 40 | H60: 3.4 | I60: 55 | J60: =+I60-10 -> 45 | K60: 15 | L60: 12 | M60: 0 | N60: =+Output_series!L61 -> 51.01519247 | O60: =+Output_series!K61 -> 58.25657178 | P60: =+Output_series!J61 -> 57.92022359 | Q60: =+Output_series!I61 -> 57.92022359
A61: 46 | C61: 1 | D61: 0 | E61: 60 | F61: 0 | G61: 40 | H61: 3.4 | I61: 55 | J61: 45 | K61: 15 | L61: 12 | M61: 0 | N61: =+Output_series!L62 -> 42.93849108 | O61: =+Output_series!K62 -> 56.44307577 | P61: =+Output_series!J62 -> 57.19355693 | Q61: =+Output_series!I62 -> 57.19355693
A62: 47 | C62: 1 | D62: 0 | E62: 60 | F62: 0 | G62: 40 | H62: 3.4 | I62: 55 | J62: 45 | K62: 15 | L62: 12 | M62: 1 | N62: =+Output_series!L63 -> 42.5562437 | O62: =+Output_series!K63 -> 56.0608284 | P62: =+Output_series!J63 -> 56.81130955 | Q62: =+Output_series!I63 -> 56.81130955
A63: 48 | C63: 1 | D63: 0 | E63: 60 | F63: 0 | G63: 40 | H63: 3.4 | I63: 55 | J63: 45 | K63: 15 | L63: 12 | M63: 1 | N63: =+Output_series!L64 -> 65 | O63: =+Output_series!K64 -> 65 | P63: =+Output_series!J64 -> 65 | Q63: =+Output_series!I64 -> 65
A64: 49 | C64: 1 | D64: 0 | E64: 40 | F64: 0 | G64: 40 | H64: 3.4 | I64: 0 | J64: 0 | K64: 15 | L64: 12 | M64: 1 | N64: =+Output_series!L65 -> 65 | O64: =+Output_series!K65 -> 65 | P64: =+Output_series!J65 -> 65 | Q64: =+Output_series!I65 -> 65
A65: 50 | C65: 1 | D65: 0 | E65: 50 | F65: 0 | G65: 40 | H65: 3.4 | I65: 60 | J65: =+I65-10 -> 50 | K65: 15 | L65: 12 | M65: 1 | N65: =+Output_series!L66 -> 65 | O65: =+Output_series!K66 -> 65 | P65: =+Output_series!J66 -> 65 | Q65: =+Output_series!I66 -> 65
A66: 51 | C66: 1 | D66: 0 | E66: 50 | F66: 0 | G66: 40 | H66: 3.4 | I66: 55 | J66: =+I66-10 -> 45 | K66: 15 | L66: 12 | M66: 1 | N66: =+Output_series!L67 -> 65 | O66: =+Output_series!K67 -> 65 | P66: =+Output_series!J67 -> 65 | Q66: =+Output_series!I67 -> 65
A67: 52 | C67: 1 | D67: 0 | E67: 50 | F67: 0 | G67: 40 | H67: 3.4 | I67: 55 | J67: =+I67-10 -> 45 | K67: 15 | L67: 12 | M67: 1 | N67: =+Output_series!L68 -> 65 | O67: =+Output_series!K68 -> 65 | P67: =+Output_series!J68 -> 65 | Q67: =+Output_series!I68 -> 65
A68: 53 | C68: 1 | D68: 0 | E68: 50 | F68: 0 | G68: 40 | H68: 3.4 | I68: 55 | J68: =+I68-10 -> 45 | K68: 15 | L68: 12 | M68: 1 | N68: =+Output_series!L69 -> 65 | O68: =+Output_series!K69 -> 65 | P68: =+Output_series!J69 -> 65 | Q68: =+Output_series!I69 -> 65
A69: 54 | C69: 1 | D69: 0 | E69: 50 | F69: 0 | G69: 40 | H69: 3.4 | I69: 55 | J69: 45 | K69: 15 | L69: 12 | M69: 1 | N69: =+Output_series!L70 -> 65 | O69: =+Output_series!K70 -> 65 | P69: =+Output_series!J70 -> 65 | Q69: =+Output_series!I70 -> 65
A70: 55 | C70: 1 | D70: 0 | E70: 50 | F70: 0 | G70: 40 | H70: 3.4 | I70: 55 | J70: 45 | K70: 15 | L70: 12 | M70: 1 | N70: =+Output_series!L71 -> 65 | O70: =+Output_series!K71 -> 65 | P70: =+Output_series!J71 -> 65 | Q70: =+Output_series!I71 -> 65
A71: 56 | C71: 1 | D71: 0 | E71: 50 | F71: 1.915 | G71: 40 | H71: 3.4 | I71: 55 | J71: 45 | K71: 15 | L71: 12 | M71: 0 | N71: =+Output_series!L72 -> 65 | O71: =+Output_series!K72 -> 65 | P71: =+Output_series!J72 -> 65 | Q71: =+Output_series!I72 -> 65
A72: 57 | C72: 1 | D72: 0 | E72: 50 | F72: 3.92 | G72: 40 | H72: 3.4 | I72: 55 | J72: =+I72-10 -> 45 | K72: 15 | L72: 12 | M72: 0 | N72: =+Output_series!L73 -> 31.57927746 | O72: =+Output_series!K73 -> 64.59651884 | P72: =+Output_series!J73 -> 62.26039327 | Q72: =+Output_series!I73 -> 62.26039327
A73: 58 | C73: 1 | D73: 0 | E73: 50 | F73: 0.21 | G73: 40 | H73: 3.4 | I73: 55 | J73: 45 | K73: 15 | L73: 12 | M73: 0 | N73: =+Output_series!L74 -> 39.2844865 | O73: =+Output_series!K74 -> 39.2844865 | P73: =+Output_series!J74 -> 39.2844865 | Q73: =+Output_series!I74 -> 39.2844865
A74: 59 | C74: 1 | D74: 0 | E74: 50 | F74: 0.105 | G74: 40 | H74: 3.4 | I74: 55 | J74: 45 | K74: 15 | L74: 12 | M74: 0 | N74: =+Output_series!L75 -> 35.42779126 | O74: =+Output_series!K75 -> 39.04848091 | P74: =+Output_series!J75 -> 39.04848091 | Q74: =+Output_series!I75 -> 40.47044459
A75: 60 | C75: 1 | D75: 0 | E75: 50 | F75: 0.105 | G75: 40 | H75: 3.4 | I75: 55 | J75: 45 | K75: 15 | L75: 12 | M75: 0 | N75: =+Output_series!L76 -> 33.70720298 | O75: =+Output_series!K76 -> 38.5873631 | P75: =+Output_series!J76 -> 38.81759121 | Q75: =+Output_series!I76 -> 40.84550895
A76: 61 | C76: 1 | D76: 0 | E76: 50 | F76: 0.105 | G76: 40 | H76: 3.4 | I76: 55 | J76: 45 | K76: 15 | L76: 12 | M76: 0 | N76: =+Output_series!L77 -> 32.11902021 | O76: =+Output_series!K77 -> 38.05524593 | P76: =+Output_series!J77 -> 38.57730389 | Q76: =+Output_series!I77 -> 41.19420683
A77: 62 | C77: 1 | D77: 0 | E77: 60 | F77: 0.105 | G77: 40 | H77: 3.4 | I77: 55 | J77: 45 | K77: 15 | L77: 12 | M77: 0 | N77: =+Output_series!L78 -> 30.65057833 | O77: =+Output_series!K78 -> 37.466285 | P77: =+Output_series!J78 -> 38.32407774 | Q77: =+Output_series!I78 -> 41.51940457
A78: 63 | C78: 1 | D78: 0 | E78: 60 | F78: 0.315 | G78: 45 | H78: 3.4 | I78: 55 | J78: 45 | K78: 15 | L78: 12 | M78: 0 | N78: =+Output_series!L79 -> 29.29085224 | O78: =+Output_series!K79 -> 36.83235941 | P78: =+Output_series!J79 -> 38.05553481 | Q78: =+Output_series!I79 -> 41.82355961
A79: 64 | C79: 1 | D79: 0 | E79: 60 | F79: 0.105 | G79: 40 | H79: 3.4 | I79: 55 | J79: 45 | K79: 15 | L79: 12 | M79: 0 | N79: =+Output_series!L80 -> 25.93639679 | O79: =+Output_series!K80 -> 35.2533134 | P79: =+Output_series!J80 -> 37.62709182 | Q79: =+Output_series!I80 -> 43.10683843
A80: 65 | C80: 1 | D80: 0 | E80: 50 | F80: 0 | G80: 40 | H80: 3.4 | I80: 55 | J80: 45 | K80: 15 | L80: 12 | M80: 0 | N80: =+Output_series!L81 -> 24.92439086 | O80: =+Output_series!K81 -> 34.51015035 | P80: =+Output_series!J81 -> 37.28800308 | Q80: =+Output_series!I81 -> 43.3070638
A81: 66 | C81: 1 | D81: 0 | E81: 60 | F81: 0.105 | G81: 40 | H81: 3.4 | I81: 55 | J81: 45 | K81: 15 | L81: 12 | M81: 0 | N81: =+Output_series!L82 -> 24.72544847 | O81: =+Output_series!K82 -> 34.31120797 | P81: =+Output_series!J82 -> 37.0890607 | Q81: =+Output_series!I82 -> 43.10812141
A82: 67 | C82: 1 | D82: 0 | E82: 60 | F82: 0.105 | G82: 40 | H82: 3.4 | I82: 55 | J82: 45 | K82: 15 | L82: 12 | M82: 0 | N82: =+Output_series!L83 -> 23.79055614 | O82: =+Output_series!K83 -> 33.55903061 | P82: =+Output_series!J83 -> 36.73307116 | Q82: =+Output_series!I83 -> 43.31486428
A83: 68 | C83: 1 | D83: 0 | E83: 60 | F83: 0.105 | G83: 40 | H83: 3.4 | I83: 55 | J83: 45 | K83: 15 | L83: 12 | M83: 0 | N83: =+Output_series!L84 -> 22.91912612 | O83: =+Output_series!K84 -> 32.80449923 | P83: =+Output_series!J84 -> 36.35977086 | Q83: =+Output_series!I84 -> 43.51153321
A84: 69 | C84: 1 | D84: 0 | E84: 60 | F84: 0.735 | G84: 45 | H84: 3.4 | I84: 55 | J84: 45 | K84: 15 | L84: 12 | M84: 0 | N84: =+Output_series!L85 -> 22.10645368 | O84: =+Output_series!K85 -> 32.05121614 | P84: =+Output_series!J85 -> 35.97015355 | Q84: =+Output_series!I85 -> 43.69893098
A85: 70 | C85: 1 | D85: 0 | E85: 60 | F85: 3.71 | G85: 40 | H85: 3.4 | I85: 55 | J85: 45 | K85: 15 | L85: 12 | M85: 0 | N85: =+Output_series!L86 -> 17.90019083 | O85: =+Output_series!K86 -> 27.90959326 | P85: =+Output_series!J86 -> 34.23749987 | Q85: =+Output_series!I86 -> 46.05197188
A86: 71 | C86: 1 | D86: 0 | E86: 60 | F86: 0 | G86: 40 | H86: 3.4 | I86: 55 | J86: 45 | K86: 15 | L86: 12 | M86: 1 | N86: =+Output_series!L87 -> 12.02983032 | O86: =+Output_series!K87 -> 12.02983032 | P86: =+Output_series!J87 -> 12.02983032 | Q86: =+Output_series!I87 -> 12.02983032
A87: 72 | C87: 1 | D87: 0 | E87: 60 | F87: 0 | G87: 40 | H87: 3.4 | I87: 55 | J87: 45 | K87: 15 | L87: 12 | M87: 1 | N87: =+Output_series!L88 -> 26.56881362 | O87: =+Output_series!K88 -> 26.56881362 | P87: =+Output_series!J88 -> 26.56881362 | Q87: =+Output_series!I88 -> 26.56881362
A88: 73 | C88: 1 | D88: 0 | E88: 60 | F88: 0 | G88: 40 | H88: 3.4 | I88: 55 | J88: =+I88-10 -> 45 | K88: 15 | L88: 12 | M88: 1 | N88: =+Output_series!L89 -> 40.96322942 | O88: =+Output_series!K89 -> 40.96322942 | P88: =+Output_series!J89 -> 40.96322942 | Q88: =+Output_series!I89 -> 40.96322942
A89: 74 | C89: 1 | D89: 0 | E89: 60 | F89: 0 | G89: 40 | H89: 3.4 | I89: 55 | J89: 45 | K89: 15 | L89: 12 | M89: 1 | N89: =+Output_series!L90 -> 55.21451523 | O89: =+Output_series!K90 -> 55.21451523 | P89: =+Output_series!J90 -> 55.21451523 | Q89: =+Output_series!I90 -> 55.21451523
A90: 75 | C90: 1 | D90: 0 | E90: 60 | F90: 0 | G90: 40 | H90: 3.4 | I90: 55 | J90: 45 | K90: 15 | L90: 12 | M90: 1 | N90: =+Output_series!L91 -> 65 | O90: =+Output_series!K91 -> 65 | P90: =+Output_series!J91 -> 65 | Q90: =+Output_series!I91 -> 65
A91: 76 | C91: 1 | D91: 0 | E91: 60 | F91: 0 | G91: 40 | H91: 3.4 | I91: 55 | J91: 45 | K91: 15 | L91: 12 | M91: 1 | N91: =+Output_series!L92 -> 65 | O91: =+Output_series!K92 -> 65 | P91: =+Output_series!J92 -> 65 | Q91: =+Output_series!I92 -> 65
A92: 77 | C92: 1 | D92: 0 | E92: 60 | F92: 0 | G92: 40 | H92: 3.4 | I92: 55 | J92: 45 | K92: 15 | L92: 12 | M92: 1 | N92: =+Output_series!L93 -> 65 | O92: =+Output_series!K93 -> 65 | P92: =+Output_series!J93 -> 65 | Q92: =+Output_series!I93 -> 65
A93: 78 | C93: 1 | D93: 0 | E93: 60 | F93: 0 | G93: 40 | H93: 3.4 | I93: 55 | J93: 45 | K93: 15 | L93: 12 | M93: 1 | N93: =+Output_series!L94 -> 65 | O93: =+Output_series!K94 -> 65 | P93: =+Output_series!J94 -> 65 | Q93: =+Output_series!I94 -> 65
A94: 79 | C94: 1 | D94: 0 | E94: 60 | F94: 0 | G94: 40 | H94: 3.4 | I94: 55 | J94: =+I94-10 -> 45 | K94: 15 | L94: 12 | M94: 1 | N94: =+Output_series!L95 -> 65 | O94: =+Output_series!K95 -> 65 | P94: =+Output_series!J95 -> 65 | Q94: =+Output_series!I95 -> 65
D95: 0
D96: 0
D97: 0
D98: 0
D99: 0
D100: 0
D101: 0
D102: 0
D103: 0
D104: 0
D105: 0
D106: 0
D107: 0
D108: 0

Sheet Method_input
A1: THIS IS A MANDATORY SHEET All input data for the method shall be listed here. In the simplest version, values for data input in column D (both green and blue background) may be inserted manually. Varying data (green background) can be fed from the "input_series" sheet. In this sample data sheet, product data (blue background) is linked to a sample catalogue built in the "Detailed_input" sheet
A4: Name | B4: Symbol | C4: Unit | D4: Value | E4: Range | F4: Origin | G4: Varying | H4: Notes
A5: Operating conditions data
A6: Energy use (storage, use for heating /DHW) | B6: - | C6: - | E6: 0...∞ | F6: M3-6 | G6: YES
A7: Calculation interval | B7: tci | C7: h | D7: 1 | E7: 0…8760 | F7: M1-9 | G7: Yes
A8: Energy required for heating | B8: QH;sto;out | C8: kWh | D8: 0 | E8: 0...∞ | F8: M3-6 | G8: Yes
A9: Temperature required for heating | B9: θsto;out;H;min | C9: °C | D9: 60 | E9: 0…100 | F9: M3-6 | G9: YES
A10: Energy required for domestic hot water | B10: QW;sto;out | C10: kWh | D10: 0 | E10: 0...∞ | F10: M3-6 | G10: YES
A11: Temperature required for domestic hot water | B11: qsto;out;W;min | C11: °C | D11: 40 | E11: 0-100 | F11: M3-6 | G11: YES
A12: Potential Input from generation | B12: QX;sto;in | C12: kWh | D12: 3.4 | E12: 0...∞ | F12: M3-6 | G12: YES
A13: Temperature input from generation | B13: qsto;gen;flw | C13: °C | D13: 55 | E13: 0-100 | F13: M3-6 | G13: YES
A14: Temperature output to generation | B14: qsto;gen;ret | C14: °C | D14: 45 | E14: 0-100 | F14: M3-6 | G14: YES
A15: Ambient temperature | B15: qsto;amb | C15: °C | D15: 15 | E15: 0-100 | F15: M1-9 | G15: NO
A16: Temperature input for DHW (cold water) | B16: qsto;dhw;in | C16: °C | D16: 12 | E16: 0-100 | F16: M3-6 | G16: NO
A17: Availability of back-up | B17: STO_BU_ON | C17: - | D17: 1 | E17: Y/N | F17: Local | G17: YES
A18: Temperature volume 1 | B18: qsto;vol,1 | C18: °C | D18: 65 | E18: 0-100 | F18: Local | G18: YES
A19: Temperature volume 2 | B19: qsto;vol,2 | C19: °C | D19: 65 | E19: 0-100 | F19: Local | G19: YES
A20: Temperature volume 3 | B20: qsto;vol,3 | C20: °C | D20: 65 | E20: 0-100 | F20: Local | G20: YES
A21: Temperature volume 4 (output to generation) | B21: qsto;vol,4 | C21: l | D21: 65 | E21: 0-100 | F21: Local | G21: YES
A25: Product data
A26: Product description data
A28: Energy type (Main) | B28: STO_FUEL_TYPE | D28: =Data_catalogue_example!D15 -> STO_FUEL_EL | H28: STO_USE_DEL … STO_USE_SBY …
A29: Energy type (Back-up) | B29: STO_FUEL_TYPE | D29: =Data_catalogue_example!D26 -> NO
A30: Product technical data
A31: Volume (total) | B31: Vsto;tot | C31: l | D31: =Data_catalogue_example!G51 -> 200 | E31: 0…100000 | F31: Local | G31: NO
A32: Thermal losses coefficient (global) | B32: Hsto;tot | C32: W/K | D32: =Data_catalogue_example!G85 -> 2.306877875 | F32: Local
A33: Volume 4 | B33: Vsto;4 | C33: l | D33: =D$31/4 -> 50 | E33: 0…100000 | F33: Local | G33: NO
A34: Volume 3 | B34: Vsto;3 | C34: l | D34: =D$31/4 -> 50 | E34: 0…100000 | F34: Local | G34: NO
A35: Volume 2 | B35: Vsto;2 | C35: l | D35: =D$31/4 -> 50 | E35: 0…100000 | F35: Local | G35: NO
A36: Volume 1 | B36: Vsto;1 | C36: l | D36: =D$31/4 -> 50 | E36: 0…100000 | F36: Local | G36: NO
A37: Electrical heater power at volume 1 | B37: Φsto;el;1 | C37: kW | D37: 3 | E37: 0-10000 | F37: Local | G37: No | H37: To be modifed according to type of heating element
A38: Position | B38: zsto;el,1;min | C38: z | D38: 0 | E38: 0-100 | F38: Local | G38: NO
A39: Altitud max | B39: zsto;el,1;max | C39: m | D39: =Data_catalogue_example!G97 -> 0.35 | E39: 0-100 | F39: Local | G39: NO
A40: Circulator power | B40: Φsto;pmp,1 | C40: kW | D40: =Data_catalogue_example!G98 -> 0 | E40: 0-100 | F40: Local | G40: NO
A41: Circulator mass flow | B41: V'sto;pmp,1 | C41: m3/h | D41: =Data_catalogue_example!G99 -> 0 | E41: 0-500 | F41: Local | G41: NO
A43: part of the thermal losses recovable | B43: fsto;rm | D43: =+Data_catalogue_example!G115 -> 1 | E43: 0… 1 | F43: Local | G43: NO | H43: to be modifed according position of the storage in the heated space
A44: part of the auxiliary energy recovered | B44: fsto;aux;rvd | C44: - | D44: =+Data_catalogue_example!G117 -> 0.75 | E44: 0…1 | F44: Local | G44: NO
A45: part of the nominal electrical power not transmitted to the distribution sub-system | B45: fsto;aux;nrvd | C45: - | D45: =+Data_catalogue_example!G118 -> 0.25 | E45: 0.1 | F45: Local | G45: NO
A47: System design data
A48: Process design
A49: storage room temperature; | B49: qsto;amb | C49: °C | D49: =+Data_catalogue_example!G124 -> 15 | E49: -50…+50 | F49: Local | G49: Yes
C50: -
A51: Control type data
A52: Control type | B52: STO_CTRL_TYPE | C52: °C | D52: 65 | G52: YES
A53: Thermostat set | B53: qsto;set;on | C53: °C | D53: 65 | G53: YES
A55: Constants
A56: Water specific heat | B56: Cp,w | C56: Wh/kg°C | D56: 1.16 | G56: NO
A57: Volumic mass | B57: rW | C57: kg/m3 | D57: 1000 | E57: 0-10000 | F57: Local | G57: NO
A59: Model Information
A60: Number of layers for the storage model | B60: Nsto;vol | D60: 4 | G60: NO

Sheet Method_cal_stratification
A1: THIS IS A MANDATORY SHEET One time step calculation shall be described here. For each calculation step (= 1 row) data for the formula in column D shall be taken from the "Method_input" sheet or previous calculation steps. Include in the column "Formula ref" its number in the standard text. The example is based on EN 15316-4-1:2008 Copy and paste a copy of the equation into column "Formula" Use the column note for information on the calculation
A3: Description | B3: Symbol | C3: Unit | D3: Value | G3: Formula | H3: Notes | I3: My notes
F4: Formula ref
A5: Type of energy use | C5: - | D5: =+Method_input!D6 -> 0
A7: Single storage and multivolume calculation
A8: energy stored for DHW service | B8: QW;sto;t0 | F8: Formula (2)
A9: Energy required for DHW use | B9: QW;sto;out | C9: kWh | D9: =+_Q_W_sto_out -> 0 | H9: LS: input copied here for convenience
A10: Step 1 - Domestic hot water use - Calculation of volume withdrawn for the storage unit for DHW use
A11: Minimum temperature required for DHW use | B11: qsto;out;W;min | C11: °C | D11: =+_θ_sto_out_W_min -> 40 | H11: LS: input copied here for convenience This should the temperature at usage and therefore about 40…60 °C according to tapping patterns (M243)
A12: Volume withdrawn from Volume 4 | B12: Vsto,4,use | C12: l | D12: =IF(_V_sto_4*_Cp_W*(_θ_sto_vol_4-_θ_sto_dw_in)/1000<Method_cal_stratification!D$9,_V_sto_4,D$9*1000/_Cp_W/(_θ_sto_vol_4-_θ_sto_dw_in)) -> 0 | F12: Formula (4) | G12: if | H12: The volume withdrawn is adapted considering the energy to be used and condition on the minimum temperzature of the water used
A13: Energy withdrawn from Volume 4 | B13: Qsto,4,use | C13: kWh | D13: =MIN(_V_sto_4*_Cp_W*(_θ_sto_vol_4-_θ_sto_dw_in)/1000,D$9) -> 0 | H13: if the energy contained in volume 4 is lower than the energy need then volume 3 is sollicated with the energy demand reduced with energy already extracted from volume 4
A14: Volume withdrawn from Volume 3 | B14: Vsto,3,use | C14: l | D14: =IF(_V_sto_3*_Cp_W*(Method_input!D$20-_θ_sto_dw_in)/1000<(Method_cal_stratification!D$9-D13),_V_sto_3,(D$9-D13)*1000/_Cp_W/(Method_input!D$20-_θ_sto_dw_in)) -> 0
A15: Energy withdrawn from Volume 3 | B15: Qsto,3,use | C15: kWh | D15: =MAX(0,D$9-D13) -> 0
A16: Volume withdrawn from Volume 2 | B16: Vsto,2,use | C16: l | D16: =IF(Method_input!D$35*_Cp_W*(Method_input!D$19-_θ_sto_dw_in)/1000<(Method_cal_stratification!D$9-D$13-D$15),Method_input!D$35,(D$9-D$13-D$15)*1000/_Cp_W/(Method_input!D$19-_θ_sto_dw_in)) -> 0
A17: Energy withdrawn from Volume 2 | B17: Qsto,2,use | C17: kWh | D17: =MAX(0,D$9-D13-D15) -> 0
A18: Volume withdrawn from Volume 1 | B18: Vsto,1,use | C18: l | D18: =IF(Method_input!D$36*_Cp_W*(Method_input!D$18-_θ_sto_dw_in)/1000<(Method_cal_stratification!D$9-D$13-D$15-D$17),Method_input!D$36,(D$9-D$13-D$15)*1000/_Cp_W/(Method_input!D$18-_θ_sto_dw_in)) -> 0
A19: Energy withdrawn from Volume 1 | B19: Qsto,1,use | C19: kWh | D19: =MAX(0,D$9-D$13-D$15-D$17) -> 0
A20: Total volume withdrawn | B20: Vsto,use | C20: l | D20: =D12+D14+D17+D19 -> 0 | H20: Sum of volume extraded
A21: Energy delivered by the storage unit | B21: Qsto,W,del | C21: l | D21: =D13+D15+D17+D19 -> 0 | F21: Formula (2) | H21: Need condition if the energy stored is not sufficient to correspond to the demand (output result)
A23: Step 2 Volume to be withdrawn after energy delivery for heating service | G23: to be added; in most cases the energy is transfered to the distribution system without mass transfer (heat exchnager - just check whether sufficint energy is stored)
A25: Step 3 Calculation of temperature of the storage unit after energy withdrawn for DHW use
A26: Temperature of volume 4 | B26: qsto,vol,4 | C26: °C | D26: =IF(D$20<_V_sto_4,(_θ_sto_vol_4*(_V_sto_4-D$20)+_V_sto_3*D$20)/_V_sto_4,IF(D$20<_V_sto_4+_V_sto_3,((_θ_sto_vol_3*(_V_sto_4+_V_sto_3-D$20)+_θ_sto_vol_2*(D$20-_V_sto_4-_V_sto_3))/(_V_sto_4)),IF(D$20<_V_sto_4+_V_sto_3+_V_sto_2,IF(D$20<_V_sto_4+_V_sto_3+_V_sto_2+_V_sto_1,12,_θ_sto_dw_in)))) -> 65 | H26: The temperatures in the different volumes are calculated according to the volume extracted from the storage unit fromvolume 1 (input of cf water)to volume 4 (output of water). Temperature of volume i+1 consider the temperature of volume i and the volume used is reduced with the sum of the volumes below
A27: Temperature of volume 3 | B27: qsto,vol,3 | C27: °C | D27: =IF($D$20<_V_sto_3,(Method_input!$D$20*(_V_sto_3-$D$20)+_θ_sto_vol_2*$D$20)/_V_sto_3,IF($D$20<_V_sto_4+_V_sto_3,((Method_input!$D$19*(_V_sto_3+Method_input!$D$35-$D$20)+Method_input!$D$18*($D$20-_V_sto_3))/(_V_sto_3)),_θ_sto_dw_in)) -> 65
A28: Temperature of volume 2 | B28: qsto,vol,2 | C28: °C | D28: =IF(D$20<_V_sto_2,(_θ_sto_vol_2*(_V_sto_2-D$20)+_θ_sto_vol_1*D$20)/_V_sto_2,IF(D$20<_V_sto_4+_V_sto_3,((_θ_sto_vol_1*(_V_sto_2+_V_sto_1-D$20)+_θ_sto_dw_in*(D$20-Method_input!D35))/(Method_input!D35)),12)) -> 65
A29: Temperature of volume 1 | B29: qsto,vol,1 | C29: °C | D29: =IF(D$20<_V_sto_1,(_θ_sto_vol_1*(_V_sto_1-D$20)+_θ_sto_dw_in*D$20)/_V_sto_1,_θ_sto_dw_in) -> 65
A31: Step 4 Temperatures in storage unit after energy input
A32: Step 4.0 - Energy input
A33: Temperature of volume 4 | B33: qsto,vol,4 | C33: °C | D33: =D$26 -> 65
A34: Temperature of volume 3 | B34: qsto,vol,3 | C34: °C | D34: =D$27 -> 65
A35: Temperature of volume 2 | B35: qsto,vol,2 | C35: °C | D35: =D$28 -> 65 | F35: Formula (9) | H35: in this calculation method the energy input is allocated to the volume 1
A36: Temperature of volume 1 | B36: qsto,vol,1 | C36: °C | D36: =D$29+Method_input!D$12*Method_input!D$17*1000/(_Cp_W*Method_input!D$36) -> 123.6206897 | H36: The temperature could exced the set point value
A37: Energy accumulation | B37: Qsto;H;tmp1 | D37: =_Cp_W/1000*(D36*Method_input!D$36+D35*Method_input!D$35+Method_cal_stratification!D34*_V_sto_3+Method_cal_stratification!D33*_V_sto_4) -> 18.48 | F37: Formula (10)
A39: Step 4.1 Condition for mixing volumes of the storage unit when the temperatur of the upper layer is lower than the temperature of volume below | D39: Final | E39: Iteration 2 | F39: Iteration 1 | G39: Formula (11)
A40: Temperature of volume 4 | B40: qsto,vol,4 | C40: °C | D40: =IF($E41>$E$40,(E$40*_V_sto_4+Method_cal_stratification!E$41*SUM(Method_input!D$34:D$36))/_V_sto_tot,E40) -> 79.65517241 | E40: =F40 -> 65 | F40: =$D33 -> 65 | G40: SI qsto,vol,i+1 < qsto,vol,i
A41: Temperature of volume 3 | B41: qsto,vol,3 | C41: °C | D41: =IF($E42>$E$40,(E$40*_V_sto_4+Method_cal_stratification!E$41*SUM(Method_input!D$34:D$36))/_V_sto_tot,E41) -> 79.65517241 | E41: =IF(F42>F41,(F41*Method_input!$D$34+Method_cal_stratification!$F$42*SUM(Method_input!$D$35:$D$36))/SUM(Method_input!$D$34:D$36),$F$41) -> 84.54022989 | F41: =$D34 -> 65
A42: Temperature of volume 2 | B42: qsto,vol,2 | C42: °C | D42: =IF($E43>$E$40,(E$40*_V_sto_4+Method_cal_stratification!E$41*SUM(Method_input!D$34:D$36))/_V_sto_tot,E42) -> 79.65517241 | E42: =IF(F42>F41,(F41*Method_input!$D$34+Method_cal_stratification!F42*SUM(Method_input!$D$35:$D$36))/SUM(Method_input!$D$34:D$36),$F$42) -> 84.54022989 | F42: =IF($D$36>$D$35,($D$36*Method_input!$D$36+Method_cal_stratification!$D$35*Method_input!$D$35)/(SUM(Method_input!$D$35:$D$36)),$D$35) -> 94.31034483
A43: Temperature of volume 1 | B43: qsto,vol,1 | C43: °C | D43: =IF($E43>$E$40,(E$40*_V_sto_4+Method_cal_stratification!E$41*SUM(Method_input!D$34:D$36))/_V_sto_tot,E43) -> 79.65517241 | E43: =IF(F42>F41,(F41*Method_input!$D$34+Method_cal_stratification!$F$42*SUM(Method_input!$D$35:$D$36))/SUM(Method_input!$D$34:D$36),$F$43) -> 84.54022989 | F43: =IF($D$36>$D$35,($D$36*Method_input!$D$36+$D$35*Method_input!$D$35)/(SUM(Method_input!$D$35:$D$36)),$D$36) -> 94.31034483 | G43: =($D$36*Method_input!$D$36+$D$35*Method_input!$D$35)/1000 -> 9.431034483
A44: enrgy stored | D44: =_Cp_W/1000*(D43*Method_input!D$36+D42*Method_input!D$35+Method_cal_stratification!D41*_V_sto_3+Method_cal_stratification!D40*_V_sto_4) -> 18.48 | F44: formula (10)
A45: Step 4.2 Thermal losses | B45: Qsto,stbl | C45: kWh | D45: =(Method_input!D$32/1000*(Method_input!D$36*(MIN(Method_cal_stratification!D$43,Method_input!D53)-Method_input!D$15)+Method_input!D$35*(MIN(Method_cal_stratification!D$42,Method_input!D53)-Method_input!D$15)+_V_sto_3*(MIN(Method_cal_stratification!D$41,Method_input!D53)-Method_input!D$15)+_V_sto_4*(MIN(Method_cal_stratification!D$40,Method_input!D53)-Method_input!D$15))/Method_input!D31) -> 0.1153438938 | F45: Formula (12)
G46: =_Cp_W/1000*(_V_sto_tot*Method_input!D53) -> 15.08
A47: Step 4.3 Limitation of the energy delivered due to temperature regulation | B47: Energy surplus | D47: =IF(D43>Method_input!D53,D37-D45-_Cp_W/1000*(_V_sto_tot*Method_input!D53),0) -> 3.284656106 | F47: Formula (15) | G47: Qsto,gen,in +( Qsto,step8 - Qsto,step7) + Qsto, | H47: thermostat is located on volume 1
A48: Adjustment of energy delivered to the storage according with the set temperature | B48: Qsto,H,W | C48: kWh | D48: =MIN(Method_input!D12-D47,Method_input!D12*Method_input!D17) -> 0.1153438938
A49: Temperature of volume 4 | B49: qsto,vol,4 | C49: °C | D49: =IF(D40>Method_input!D$53,Method_input!D$53,D40-1000*D$45/(Method_input!D$31*_Cp_W)) -> 65 | F49: Formula (13) | G49: Temperature below the set point | H49: Additionnal output
A50: Temperature of volume 3 | B50: qsto,vol,3 | C50: °C | D50: =IF(D41>Method_input!D$53,Method_input!D$53,D41-1000*D$45/(Method_input!D$31*_Cp_W)) -> 65 | H50: Additionnal output
A51: Temperature of volume 2 | B51: qsto,vol,2 | C51: °C | D51: =IF(D42>Method_input!D$53,Method_input!D$53,D42-1000*D$45/(Method_input!D$31*_Cp_W)) -> 65 | G51: Temperature above the set point qsto,vol,i =qsto,set | H51: Additionnal output
A52: Temperature of volume 1 | B52: qsto,vol,1 | C52: °C | D52: =IF(D43>Method_input!D$53,Method_input!D53,D43-1000*D$45/(Method_input!D$31*_Cp_W)) -> 65 | H52: Additionnal output
A54: Thermal losses | B54: FSTO,H,ls | C54: kWh | D54: =D45 -> 0.1153438938 | F54: formula (14)
A55: Time of operation for auxiliary energy | B55: tsto,H,gen,aux | C55: h | D55: =IF(_Vh_sto_pmp_1=0,0,Method_cal_stratification!D48/(_Cp_W*Method_cal_stratification!D41*(_θ_sto_gen_flw-_θ_sto_gen_ret))) -> 0 | F55: formula (27)
A56: total auxiliary energy | B56: Wsto,aux | C56: kWh | D56: =D55*_Φ_sto_pmp_1 -> 0 | F56: formula (29) | H56: Method output
A58: Recovered auxiliary energy to the heating medium | B58: Qsto,h,aux,rvd | C58: kWh | D58: =D$56*Method_input!D$45 -> 0 | F58: formula (30)
A59: recoverable auxiliary energy transmitted to the heated space | B59: Qsto,h,rbl,aux | C59: kWh | D59: =D$56*_f_sto_rm*(1-Method_input!D$44) -> 0 | F59: formula (31)
A60: Recoverable heat losses (storage) | B60: Qsto,h,rbl,env | C60: kWh | D60: =D45*Method_input!D43 -> 0.1153438938 | F60: formula (32)
A61: total recoverable heat losses | B61: Qsto,h,ls,rbl | C61: kWh | D61: =+D60+D59 -> 0.1153438938 | F61: formula (33) | H61: Method output
A62: Fuel heat input | B62: QSTO,h,in | C62: kWh | D62: =D48 -> 0.1153438938 | F62: formula (14) | H62: Method output
H63: Method output
A64: Back up energy | B64: Qsto,bu,in | C64: kWh | D64: =0 -> 0 | F64: formula (15) | H64: Method output
A66: Energy delivered to DHW distribution system | B66: Qsto,W,out | C66: kWh | D66: =D21 -> 0 | H66: Method output
A67: Energy delivered to the heating distribution system | B67: Qsto,H,out | C67: kWh | D67: 0 | G67: see spredsheet Example_1vol | H67: Method output
A69: Energy type (Main) | C69: List | D69: =Method_input!D28 -> STO_FUEL_EL
A70: Energy type (Back-up) | C70: List | D70: =Method_input!D29 -> NO

Sheet Method_output
A1: THIS IS A MANDATORY SHEET Output of one step calculation shall be indicated here. Each cell in the column value shall be a reference to a single cell in the "Method_calculation" sheet. The macro will take the calculation step results and fill the values table in the "Output_series" sheet.
A3: Description | B3: Unit | D3: Value
A9: Name | B9: Symbol | C9: Unit | D9: Value | E9: Intended destination | F9: Notes
A10: Energy flow data
A11: Input from generation unit | B11: EH,gen,in | C11: kWh | D11: =+Method_cal_stratification!D62 -> 0.1153438938 | E11: M3-1 | F11: Fuel required from the generation unit
A12: Recoverable heat | B12: QH,gen,ls,rbl | C12: kWh | D12: =+Method_cal_stratification!D61 -> 0.1153438938 | E12: M2-2 | F12: Recoverable heat for heating
A13: Back up energy | B13: QSTO,bkup,in | C13: kWh | D13: =+Method_cal_stratification!D55 -> 0 | E13: M3-1 | F13: Energy from back up
A14: Total auxiliary energy | B14: Wsto,aux | C14: kWh | D14: =+Method_cal_stratification!D56 -> 0 | E14: M3-1 | F14: storage auxiliary energy
A15: Operating condition data
A16: energy delivered to DHW distribution | B16: Qsto,W,out | D16: =+Method_cal_stratification!D66 -> 0 | E16: M8-6
A17: energy delivered to Heating system | B17: Qsto,H,out | D17: =Method_cal_stratification!D67 -> 0 | E17: M3-6
A18: Temperature 4 | B18: qsto,vol,4 | D18: =+Method_cal_stratification!D49 -> 65 | E18: Local
A19: Temperature 3 | B19: qsto,vol,3 | D19: =+Method_cal_stratification!D50 -> 65 | E19: Local
A20: Temperature 2 | B20: qsto,vol,2 | D20: =+Method_cal_stratification!D51 -> 65 | E20: Local
A21: Temperature 1 | B21: qsto,vol,1 | D21: =+Method_cal_stratification!D52 -> 65 | E21: Local
A22: Other data
A23: Back up energy | B23: STO_FUEL | C23: List | D23: =Method_cal_stratification!D69 -> STO_FUEL_EL | E23: M3-1 | F23: Needed to apply the right weighting factors
A24: Fuel type (generation) | B24: STO_FUEL | C24: List | D24: =Method_cal_stratification!D70 -> NO | E24: M3-1 | F24: Needed to apply the right weighting factors

Sheet Output_series
A1: Here a time series can be generated to test the method with variable input data. Data input series must be inserted in the "input_series" sheet before.
A3: Time series for data output
A4: Settings
A5: Number of output data | C5: 13
A7: This table will be filled automatically via a macro scanning the "input_series" and performing for each time step the calculation defined in the "Method_calculation" sheet.
A8: Press CLEAR OUTPUT to reset output series
A9: Press "Run method" to start calculation of individual time steps
B13: Input from generation unit | C13: Recoverable heat | D13: Back up energy | E13: Total auxiliary energy | F13: Operating condition data | G13: Energy delivered to DHW system | H13: Energy delivred to heating system | I13: Temperature 4 | J13: Temperature 3 | K13: Temperature 2 | L13: Temperature 1 | M13: Other data | N13: Back up energy | O13: Fuel type (generation) | P13: energy stored
B14: EH,gen,in | C14: QH,gen,ls,rbl | D14: WSTO,H,bkup | E14: WH,gen,aux | M14: STO_ELEC | N14: STO_FUEL | P14: (kWh)
A15: Symbol | B15: ESTO,in | C15: QSTO,rbl | E15: WSTO,aux
A16: Destination
A17: Time stamp | D17: VALUES
A18: 1 | B18: 0.1153438938 | C18: 0.1153438938 | D18: 0 | E18: 0 | G18: 0 | H18: 0 | I18: 65 | J18: 65 | K18: 65 | L18: 65 | N18: STO_FUEL_EL | O18: NO | P18: =_Cp_W/1000*(I18*[0]!_V_sto_4+J18*_V_sto_3+K18*_V_sto_2+L18*_V_sto_1) -> 15.08
A19: 2 | B19: 0.1153438938 | C19: 0.1153438938 | D19: 0 | E19: 0 | G19: 0 | H19: 0 | I19: 65 | J19: 65 | K19: 65 | L19: 65 | N19: STO_FUEL_EL | O19: NO | P19: =_Cp_W/1000*(I19*[0]!_V_sto_4+J19*_V_sto_3+K19*_V_sto_2+L19*_V_sto_1) -> 15.08
A20: 3 | B20: 0.1153438938 | C20: 0.1153438938 | D20: 0 | E20: 0 | G20: 0 | H20: 0 | I20: 65 | J20: 65 | K20: 65 | L20: 65 | N20: STO_FUEL_EL | O20: NO | P20: =_Cp_W/1000*(I20*[0]!_V_sto_4+J20*_V_sto_3+K20*_V_sto_2+L20*_V_sto_1) -> 15.08
A21: 4 | B21: 0.1153438938 | C21: 0.1153438938 | D21: 0 | E21: 0 | G21: 0 | H21: 0 | I21: 65 | J21: 65 | K21: 65 | L21: 65 | N21: STO_FUEL_EL | O21: NO | P21: =_Cp_W/1000*(I21*[0]!_V_sto_4+J21*_V_sto_3+K21*_V_sto_2+L21*_V_sto_1) -> 15.08
A22: 5 | B22: 0.1153438938 | C22: 0.1153438938 | D22: 0 | E22: 0 | G22: 0 | H22: 0 | I22: 65 | J22: 65 | K22: 65 | L22: 65 | N22: STO_FUEL_EL | O22: NO | P22: =_Cp_W/1000*(I22*[0]!_V_sto_4+J22*_V_sto_3+K22*_V_sto_2+L22*_V_sto_1) -> 15.08
A23: 6 | B23: 0.1153438938 | C23: 0.1153438938 | D23: 0 | E23: 0 | G23: 0 | H23: 0 | I23: 65 | J23: 65 | K23: 65 | L23: 65 | N23: STO_FUEL_EL | O23: NO | P23: =_Cp_W/1000*(I23*[0]!_V_sto_4+J23*_V_sto_3+K23*_V_sto_2+L23*_V_sto_1) -> 15.08
A24: 7 | B24: 0.1153438938 | C24: 0.1153438938 | D24: 0 | E24: 0 | G24: 0 | H24: 0 | I24: 65 | J24: 65 | K24: 65 | L24: 65 | N24: STO_FUEL_EL | O24: NO | P24: =_Cp_W/1000*(I24*[0]!_V_sto_4+J24*_V_sto_3+K24*_V_sto_2+L24*_V_sto_1) -> 15.08
A25: 8 | B25: 0 | C25: 0.09706954117 | D25: 0 | E25: 0 | G25: 1.61 | H25: 0 | I25: 62.61754345 | J25: 62.61754345 | K25: 64.58159681 | L25: 36.82297612 | N25: STO_FUEL_EL | O25: NO | P25: =_Cp_W/1000*(I25*[0]!_V_sto_4+J25*_V_sto_3+K25*_V_sto_2+L25*_V_sto_1) -> 13.14510027
A26: 9 | B26: 0 | C26: 0.09178937077 | D26: 0 | E26: 0 | G26: 0.42 | H26: 0 | I26: 61.98136516 | J26: 62.50287839 | K26: 60.21478629 | L26: 32.87614086 | N26: STO_FUEL_EL | O26: NO | P26: =_Cp_W/1000*(I26*[0]!_V_sto_4+J26*_V_sto_3+K26*_V_sto_2+L26*_V_sto_1) -> 12.6193599
A27: 10 | B27: 0 | C27: 0.0887955005 | D27: 0 | E27: 0 | G27: 0.21 | H27: 0 | I27: 61.64846256 | J27: 61.95438796 | K27: 57.85161395 | L27: 30.98111747 | N27: STO_FUEL_EL | O27: NO | P27: =_Cp_W/1000*(I27*[0]!_V_sto_4+J27*_V_sto_3+K27*_V_sto_2+L27*_V_sto_1) -> 12.32126375
A28: 11 | B28: 0 | C28: 0.08686845102 | D28: 0 | E28: 0 | G28: 0.105 | H28: 0 | I28: 61.28508801 | J28: 61.43035446 | K28: 56.49739506 | L28: 29.91457106 | N28: STO_FUEL_EL | O28: NO | P28: =_Cp_W/1000*(I28*[0]!_V_sto_4+J28*_V_sto_3+K28*_V_sto_2+L28*_V_sto_1) -> 12.1293897
A29: 12 | B29: 0 | C29: 0.08369695356 | D29: 0 | E29: 0 | G29: 0.21 | H29: 0 | I29: 60.55421568 | J29: 60.70719581 | K29: 54.18374638 | L29: 28.23772866 | N29: STO_FUEL_EL | O29: NO | P29: =_Cp_W/1000*(I29*[0]!_V_sto_4+J29*_V_sto_3+K29*_V_sto_2+L29*_V_sto_1) -> 11.81360742
A30: 13 | B30: 0 | C30: 0.07930300976 | D30: 0 | E30: 0 | G30: 0.315 | H30: 0 | I30: 59.48473127 | J30: 59.63569169 | K30: 50.93972981 | L30: 26.07963331 | N30: STO_FUEL_EL | O30: NO | P30: =_Cp_W/1000*(I30*[0]!_V_sto_4+J30*_V_sto_3+K30*_V_sto_2+L30*_V_sto_1) -> 11.37610759
A31: =A30+1 -> 14 | B31: 0 | C31: 0.07857976147 | D31: 0 | E31: 0 | G31: 0 | H31: 0 | I31: 59.25924572 | J31: 59.29698582 | K31: 50.60102395 | L31: 25.74092744 | N31: STO_FUEL_EL | O31: NO | P31: =_Cp_W/1000*(I31*[0]!_V_sto_4+J31*_V_sto_3+K31*_V_sto_2+L31*_V_sto_1) -> 11.30409461
A32: 15 | B32: 0 | C32: 0.07657461357 | D32: 0 | E32: 0 | G32: 0.105 | H32: 0 | I32: 58.61897999 | J32: 58.6338094 | K32: 49.31865318 | L32: 24.88449513 | N32: STO_FUEL_EL | O32: NO | P32: =_Cp_W/1000*(I32*[0]!_V_sto_4+J32*_V_sto_3+K32*_V_sto_2+L32*_V_sto_1) -> 11.10444439
A33: 16 | B33: 0 | C33: 0.07457577792 | D33: 0 | E33: 0 | G33: 0.105 | H33: 0 | I33: 57.96283368 | J33: 57.95062862 | K33: 48.04835946 | L33: 24.06270698 | N33: STO_FUEL_EL | O33: NO | P33: =_Cp_W/1000*(I33*[0]!_V_sto_4+J33*_V_sto_3+K33*_V_sto_2+L33*_V_sto_1) -> 10.90542267
A34: 17 | B34: 0 | C34: 0.07260957592 | D34: 0 | E34: 0 | G34: 0.105 | H34: 0 | I34: 57.33622808 | J34: 57.2476342 | K34: 46.79066076 | L34: 23.27461907 | N34: STO_FUEL_EL | O34: NO | P34: =_Cp_W/1000*(I34*[0]!_V_sto_4+J34*_V_sto_3+K34*_V_sto_2+L34*_V_sto_1) -> 10.70965024
A35: 18 | B35: 0 | C35: 0.07067661805 | D35: 0 | E35: 0 | G35: 0.105 | H35: 0 | I35: 56.73864069 | J35: 56.52543068 | K35: 45.5469887 | L35: 22.51976572 | N35: STO_FUEL_EL | O35: NO | P35: =_Cp_W/1000*(I35*[0]!_V_sto_4+J35*_V_sto_3+K35*_V_sto_2+L35*_V_sto_1) -> 10.5171879
A36: 19 | B36: 0 | C36: 0.06758116056 | D36: 0 | E36: 0 | G36: 0.21 | H36: 0 | I36: 55.90198568 | J36: 55.34564936 | K36: 43.39210183 | L36: 21.37710498 | N36: STO_FUEL_EL | O36: NO | P36: =_Cp_W/1000*(I36*[0]!_V_sto_4+J36*_V_sto_3+K36*_V_sto_2+L36*_V_sto_1) -> 10.20897683
A37: 20 | B37: 0 | C37: 0.065737982 | D37: 0 | E37: 0 | G37: 0.105 | H37: 0 | I37: 55.37525768 | J37: 54.56937881 | K37: 42.20093678 | L37: 20.70707677 | N37: STO_FUEL_EL | O37: NO | P37: =_Cp_W/1000*(I37*[0]!_V_sto_4+J37*_V_sto_3+K37*_V_sto_2+L37*_V_sto_1) -> 10.0254537
A38: =A37+1 -> 21 | B38: 0 | C38: 0.05700598424 | D38: 0 | E38: 0 | G38: 0.735 | H38: 0 | I38: 53.55911953 | J38: 50.71012828 | K38: 35.67562548 | L38: 17.91752214 | N38: STO_FUEL_EL | O38: NO | P38: =_Cp_W/1000*(I38*[0]!_V_sto_4+J38*_V_sto_3+K38*_V_sto_2+L38*_V_sto_1) -> 9.156018935
A39: =A38+1 -> 22 | B39: 0 | C39: 0.04121856526 | D39: 0 | E39: 0 | G39: 1.505 | H39: 0 | I39: 51.15924512 | J39: 41.14536649 | K39: 24.41032868 | L39: 14.04513142 | N39: STO_FUEL_EL | O39: NO | P39: =_Cp_W/1000*(I39*[0]!_V_sto_4+J39*_V_sto_3+K39*_V_sto_2+L39*_V_sto_1) -> 7.584084159
A40: 23 | B40: 3.4 | C40: 0.07461640397 | D40: 0 | E40: 0 | G40: 0 | H40: 0 | I40: 50.83762269 | J40: 45.75221632 | K40: 45.75221632 | L40: 45.75221632 | N40: STO_FUEL_EL | O40: NO | P40: =_Cp_W/1000*(I40*[0]!_V_sto_4+J40*_V_sto_3+K40*_V_sto_2+L40*_V_sto_1) -> 10.90946776
A41: 24 | B41: 3.4 | C41: 0.1076821533 | D41: 0 | E41: 0 | G41: 0 | H41: 0 | I41: 61.21459311 | J41: 61.21459311 | K41: 61.21459311 | L41: 61.21459311 | N41: STO_FUEL_EL | O41: NO | P41: =_Cp_W/1000*(I41*[0]!_V_sto_4+J41*_V_sto_3+K41*_V_sto_2+L41*_V_sto_1) -> 14.2017856
A42: 25 | B42: 0.993558292 | C42: 0.1153438938 | D42: 0 | E42: 0 | G42: 0 | H42: 0 | I42: 65 | J42: 65 | K42: 65 | L42: 65 | N42: STO_FUEL_EL | O42: NO | P42: =_Cp_W/1000*(I42*[0]!_V_sto_4+J42*_V_sto_3+K42*_V_sto_2+L42*_V_sto_1) -> 15.08
A43: 26 | B43: 0.1153438938 | C43: 0.1153438938 | D43: 0 | E43: 0 | G43: 0 | H43: 0 | I43: 65 | J43: 65 | K43: 65 | L43: 65 | N43: STO_FUEL_EL | O43: NO | P43: =_Cp_W/1000*(I43*[0]!_V_sto_4+J43*_V_sto_3+K43*_V_sto_2+L43*_V_sto_1) -> 15.08
A44: 27 | B44: 0.1153438938 | C44: 0.1153438938 | D44: 0 | E44: 0 | G44: 0 | H44: 0 | I44: 65 | J44: 65 | K44: 65 | L44: 65 | N44: STO_FUEL_EL | O44: NO | P44: =_Cp_W/1000*(I44*[0]!_V_sto_4+J44*_V_sto_3+K44*_V_sto_2+L44*_V_sto_1) -> 15.08
A45: 28 | B45: 0.1153438938 | C45: 0.1153438938 | D45: 0 | E45: 0 | G45: 0 | H45: 0 | I45: 65 | J45: 65 | K45: 65 | L45: 65 | N45: STO_FUEL_EL | O45: NO | P45: =_Cp_W/1000*(I45*[0]!_V_sto_4+J45*_V_sto_3+K45*_V_sto_2+L45*_V_sto_1) -> 15.08
A46: 29 | B46: 0.1153438938 | C46: 0.1153438938 | D46: 0 | E46: 0 | G46: 0 | H46: 0 | I46: 65 | J46: 65 | K46: 65 | L46: 65 | N46: STO_FUEL_EL | O46: NO | P46: =_Cp_W/1000*(I46*[0]!_V_sto_4+J46*_V_sto_3+K46*_V_sto_2+L46*_V_sto_1) -> 15.08
A47: 30 | B47: 0.1153438938 | C47: 0.1153438938 | D47: 0 | E47: 0 | G47: 0 | H47: 0 | I47: 65 | J47: 65 | K47: 65 | L47: 65 | N47: STO_FUEL_EL | O47: NO | P47: =_Cp_W/1000*(I47*[0]!_V_sto_4+J47*_V_sto_3+K47*_V_sto_2+L47*_V_sto_1) -> 15.08
A48: 31 | B48: 0.384777856 | C48: 0.1153438938 | D48: 0 | E48: 0 | G48: 0.21 | H48: 0 | I48: 65 | J48: 65 | K48: 65 | L48: 65 | N48: STO_FUEL_EL | O48: NO | P48: =_Cp_W/1000*(I48*[0]!_V_sto_4+J48*_V_sto_3+K48*_V_sto_2+L48*_V_sto_1) -> 15.08
A49: 32 | B49: 0 | C49: 0.1141520882 | D49: 0 | E49: 0 | G49: 0.105 | H49: 0 | I49: 64.3798747 | J49: 64.3798747 | K49: 64.50796514 | L49: 62.69762031 | N49: STO_FUEL_EL | O49: NO | P49: =_Cp_W/1000*(I49*[0]!_V_sto_4+J49*_V_sto_3+K49*_V_sto_2+L49*_V_sto_1) -> 14.84598942
A50: 33 | B50: 0 | C50: 0.1137048421 | D50: 0 | E50: 0 | G50: 0.105 | H50: 0 | I50: 63.79938645 | J50: 63.79938645 | K50: 63.79938645 | L50: 63.79938645 | N50: STO_FUEL_EL | O50: NO | P50: =_Cp_W/1000*(I50*[0]!_V_sto_4+J50*_V_sto_3+K50*_V_sto_2+L50*_V_sto_1) -> 14.80145766
A51: 34 | B51: 0 | C51: 0.1125742249 | D51: 0 | E51: 0 | G51: 0 | H51: 0 | I51: 63.31415272 | J51: 63.31415272 | K51: 63.31415272 | L51: 63.31415272 | N51: STO_FUEL_EL | O51: NO | P51: =_Cp_W/1000*(I51*[0]!_V_sto_4+J51*_V_sto_3+K51*_V_sto_2+L51*_V_sto_1) -> 14.68888343
A52: 35 | B52: 0 | C52: 0.1090958319 | D52: 0 | E52: 0 | G52: 0.21 | H52: 0 | I52: 62.60905281 | J52: 62.60905281 | K52: 62.84391206 | L52: 59.22322241 | N52: STO_FUEL_EL | O52: NO | P52: =_Cp_W/1000*(I52*[0]!_V_sto_4+J52*_V_sto_3+K52*_V_sto_2+L52*_V_sto_1) -> 14.34254393
A53: 36 | B53: 0 | C53: 0.1044959428 | D53: 0 | E53: 0 | G53: 0.315 | H53: 0 | I53: 61.83926155 | J53: 61.83926155 | K53: 62.00494965 | L53: 53.70511968 | N53: STO_FUEL_EL | O53: NO | P53: =_Cp_W/1000*(I53*[0]!_V_sto_4+J53*_V_sto_3+K53*_V_sto_2+L53*_V_sto_1) -> 13.88453836
A54: 37 | B54: 0 | C54: 0.1082435673 | D54: 0 | E54: 0 | G54: 0 | H54: 0 | I54: 61.4555385 | J54: 61.4555385 | K54: 61.4555385 | L54: 61.4555385 | N54: STO_FUEL_EL | O54: NO | P54: =_Cp_W/1000*(I54*[0]!_V_sto_4+J54*_V_sto_3+K54*_V_sto_2+L54*_V_sto_1) -> 14.25768493
A55: 38 | B55: 0 | C55: 0.1071672539 | D55: 0 | E55: 0 | G55: 0 | H55: 0 | I55: 60.99361068 | J55: 60.99361068 | K55: 60.99361068 | L55: 60.99361068 | N55: STO_FUEL_EL | O55: NO | P55: =_Cp_W/1000*(I55*[0]!_V_sto_4+J55*_V_sto_3+K55*_V_sto_2+L55*_V_sto_1) -> 14.15051768
A56: 39 | B56: 0 | C56: 0.1061016429 | D56: 0 | E56: 0 | G56: 0 | H56: 0 | I56: 60.53627601 | J56: 60.53627601 | K56: 60.53627601 | L56: 60.53627601 | N56: STO_FUEL_EL | O56: NO | P56: =_Cp_W/1000*(I56*[0]!_V_sto_4+J56*_V_sto_3+K56*_V_sto_2+L56*_V_sto_1) -> 14.04441603
A57: 40 | B57: 0 | C57: 0.1050466276 | D57: 0 | E57: 0 | G57: 0 | H57: 0 | I57: 60.08348882 | J57: 60.08348882 | K57: 60.08348882 | L57: 60.08348882 | N57: STO_FUEL_EL | O57: NO | P57: =_Cp_W/1000*(I57*[0]!_V_sto_4+J57*_V_sto_3+K57*_V_sto_2+L57*_V_sto_1) -> 13.93936941
A58: 41 | B58: 0 | C58: 0.1040021029 | D58: 0 | E58: 0 | G58: 0 | H58: 0 | I58: 59.6352039 | J58: 59.6352039 | K58: 59.6352039 | L58: 59.6352039 | N58: STO_FUEL_EL | O58: NO | P58: =_Cp_W/1000*(I58*[0]!_V_sto_4+J58*_V_sto_3+K58*_V_sto_2+L58*_V_sto_1) -> 13.8353673
A59: 42 | B59: 0 | C59: 0.1006686592 | D59: 0 | E59: 0 | G59: 0.21 | H59: 0 | I59: 59.01819744 | J59: 59.01819744 | K59: 59.20128726 | L59: 55.58059761 | N59: STO_FUEL_EL | O59: NO | P59: =_Cp_W/1000*(I59*[0]!_V_sto_4+J59*_V_sto_3+K59*_V_sto_2+L59*_V_sto_1) -> 13.50346023
A60: 43 | B60: 0 | C60: 0.1017557887 | D60: 0 | E60: 0 | G60: 0 | H60: 0 | I60: 58.67113981 | J60: 58.67113981 | K60: 58.67113981 | L60: 58.67113981 | N60: STO_FUEL_EL | O60: NO | P60: =_Cp_W/1000*(I60*[0]!_V_sto_4+J60*_V_sto_3+K60*_V_sto_2+L60*_V_sto_1) -> 13.61170444
A61: 44 | B61: 0 | C61: 0.09617978471 | D61: 0 | E61: 0 | G61: 0.42 | H61: 0 | I61: 57.92022359 | J61: 57.92022359 | K61: 58.25657178 | L61: 51.01519247 | N61: STO_FUEL_EL | O61: NO | P61: =_Cp_W/1000*(I61*[0]!_V_sto_4+J61*_V_sto_3+K61*_V_sto_2+L61*_V_sto_1) -> 13.05650826
A62: 45 | B62: 0 | C62: 0.08957204605 | D62: 0 | E62: 0 | G62: 0.525 | H62: 0 | I62: 57.19355693 | J62: 57.19355693 | K62: 56.44307577 | L62: 42.93849108 | N62: STO_FUEL_EL | O62: NO | P62: =_Cp_W/1000*(I62*[0]!_V_sto_4+J62*_V_sto_3+K62*_V_sto_2+L62*_V_sto_1) -> 12.39858348
A63: 46 | B63: 0 | C63: 0.08868139187 | D63: 0 | E63: 0 | G63: 0 | H63: 0 | I63: 56.81130955 | J63: 56.81130955 | K63: 56.0608284 | L63: 42.5562437 | N63: STO_FUEL_EL | O63: NO | P63: =_Cp_W/1000*(I63*[0]!_V_sto_4+J63*_V_sto_3+K63*_V_sto_2+L63*_V_sto_1) -> 12.30990209
A64: 47 | B64: 2.885441804 | C64: 0.1153438938 | D64: 0 | E64: 0 | G64: 0 | H64: 0 | I64: 65 | J64: 65 | K64: 65 | L64: 65 | N64: STO_FUEL_EL | O64: NO | P64: =_Cp_W/1000*(I64*[0]!_V_sto_4+J64*_V_sto_3+K64*_V_sto_2+L64*_V_sto_1) -> 15.08
A65: 48 | B65: 0.1153438938 | C65: 0.1153438938 | D65: 0 | E65: 0 | G65: 0 | H65: 0 | I65: 65 | J65: 65 | K65: 65 | L65: 65 | N65: STO_FUEL_EL | O65: NO | P65: =_Cp_W/1000*(I65*[0]!_V_sto_4+J65*_V_sto_3+K65*_V_sto_2+L65*_V_sto_1) -> 15.08
A66: 49 | B66: 0.1153438938 | C66: 0.1153438938 | D66: 0 | E66: 0 | G66: 0 | H66: 0 | I66: 65 | J66: 65 | K66: 65 | L66: 65 | N66: STO_FUEL_EL | O66: NO | P66: =_Cp_W/1000*(I66*[0]!_V_sto_4+J66*_V_sto_3+K66*_V_sto_2+L66*_V_sto_1) -> 15.08
A67: 50 | B67: 0.1153438938 | C67: 0.1153438938 | D67: 0 | E67: 0 | G67: 0 | H67: 0 | I67: 65 | J67: 65 | K67: 65 | L67: 65 | N67: STO_FUEL_EL | O67: NO | P67: =_Cp_W/1000*(I67*[0]!_V_sto_4+J67*_V_sto_3+K67*_V_sto_2+L67*_V_sto_1) -> 15.08
A68: 51 | B68: 0.1153438938 | C68: 0.1153438938 | D68: 0 | E68: 0 | G68: 0 | H68: 0 | I68: 65 | J68: 65 | K68: 65 | L68: 65 | N68: STO_FUEL_EL | O68: NO | P68: =_Cp_W/1000*(I68*[0]!_V_sto_4+J68*_V_sto_3+K68*_V_sto_2+L68*_V_sto_1) -> 15.08
A69: 52 | B69: 0.1153438938 | C69: 0.1153438938 | D69: 0 | E69: 0 | G69: 0 | H69: 0 | I69: 65 | J69: 65 | K69: 65 | L69: 65 | N69: STO_FUEL_EL | O69: NO | P69: =_Cp_W/1000*(I69*[0]!_V_sto_4+J69*_V_sto_3+K69*_V_sto_2+L69*_V_sto_1) -> 15.08
A70: 53 | B70: 0.1153438938 | C70: 0.1153438938 | D70: 0 | E70: 0 | G70: 0 | H70: 0 | I70: 65 | J70: 65 | K70: 65 | L70: 65 | N70: STO_FUEL_EL | O70: NO | P70: =_Cp_W/1000*(I70*[0]!_V_sto_4+J70*_V_sto_3+K70*_V_sto_2+L70*_V_sto_1) -> 15.08
A71: 54 | B71: 0.1153438938 | C71: 0.1153438938 | D71: 0 | E71: 0 | G71: 0 | H71: 0 | I71: 65 | J71: 65 | K71: 65 | L71: 65 | N71: STO_FUEL_EL | O71: NO | P71: =_Cp_W/1000*(I71*[0]!_V_sto_4+J71*_V_sto_3+K71*_V_sto_2+L71*_V_sto_1) -> 15.08
A72: 55 | B72: 0.1153438938 | C72: 0.1153438938 | D72: 0 | E72: 0 | G72: 0 | H72: 0 | I72: 65 | J72: 65 | K72: 65 | L72: 65 | N72: STO_FUEL_EL | O72: NO | P72: =_Cp_W/1000*(I72*[0]!_V_sto_4+J72*_V_sto_3+K72*_V_sto_2+L72*_V_sto_1) -> 15.08
A73: 56 | B73: 0 | C73: 0.09360762966 | D73: 0 | E73: 0 | G73: 1.915 | H73: 0 | I73: 62.26039327 | J73: 62.26039327 | K73: 64.59651884 | L73: 31.57927746 | N73: STO_FUEL_EL | O73: NO | P73: =_Cp_W/1000*(I73*[0]!_V_sto_4+J73*_V_sto_3+K73*_V_sto_2+L73*_V_sto_1) -> 12.8004018
A74: 57 | B74: 0 | C74: 0.05658398402 | D74: 0 | E74: 0 | G74: 3.92 | H74: 0 | I74: 39.2844865 | J74: 39.2844865 | K74: 39.2844865 | L74: 39.2844865 | N74: STO_FUEL_EL | O74: NO | P74: =_Cp_W/1000*(I74*[0]!_V_sto_4+J74*_V_sto_3+K74*_V_sto_2+L74*_V_sto_1) -> 9.114000868
A75: 58 | B75: 0 | C75: 0.05475329655 | D75: 0 | E75: 0 | G75: 0.21 | H75: 0 | I75: 40.47044459 | J75: 39.04848091 | K75: 39.04848091 | L75: 35.42779126 | N75: STO_FUEL_EL | O75: NO | P75: =_Cp_W/1000*(I75*[0]!_V_sto_4+J75*_V_sto_3+K75*_V_sto_2+L75*_V_sto_1) -> 8.931721465
A76: 59 | B76: 0 | C76: 0.05356641077 | D76: 0 | E76: 0 | G76: 0.105 | H76: 0 | I76: 40.84550895 | J76: 38.81759121 | K76: 38.5873631 | L76: 33.70720298 | N76: STO_FUEL_EL | O76: NO | P76: =_Cp_W/1000*(I76*[0]!_V_sto_4+J76*_V_sto_3+K76*_V_sto_2+L76*_V_sto_1) -> 8.813544642
A77: 60 | B77: 0 | C77: 0.05239446179 | D77: 0 | E77: 0 | G77: 0.105 | H77: 0 | I77: 41.19420683 | J77: 38.57730389 | K77: 38.05524593 | L77: 32.11902021 | N77: STO_FUEL_EL | O77: NO | P77: =_Cp_W/1000*(I77*[0]!_V_sto_4+J77*_V_sto_3+K77*_V_sto_2+L77*_V_sto_1) -> 8.696855058
A78: 61 | B78: 0 | C78: 0.051237925 | D78: 0 | E78: 0 | G78: 0.105 | H78: 0 | I78: 41.51940457 | J78: 38.32407774 | K78: 37.466285 | L78: 30.65057833 | N78: STO_FUEL_EL | O78: NO | P78: =_Cp_W/1000*(I78*[0]!_V_sto_4+J78*_V_sto_3+K78*_V_sto_2+L78*_V_sto_1) -> 8.581700047
A79: 62 | B79: 0 | C79: 0.05009734416 | D79: 0 | E79: 0 | G79: 0.105 | H79: 0 | I79: 41.82355961 | J79: 38.05553481 | K79: 36.83235941 | L79: 29.29085224 | N79: STO_FUEL_EL | O79: NO | P79: =_Cp_W/1000*(I79*[0]!_V_sto_4+J79*_V_sto_3+K79*_V_sto_2+L79*_V_sto_1) -> 8.468133752
A80: 63 | B80: 0 | C80: 0.04772147398 | D80: 0 | E80: 0 | G80: 0.315 | H80: 0 | I80: 43.10683843 | J80: 37.62709182 | K80: 35.2533134 | L80: 25.93639679 | N80: STO_FUEL_EL | O80: NO | P80: =_Cp_W/1000*(I80*[0]!_V_sto_4+J80*_V_sto_3+K80*_V_sto_2+L80*_V_sto_1) -> 8.231571146
A81: 64 | B81: 0 | C81: 0.04661817808 | D81: 0 | E81: 0 | G81: 0.105 | H81: 0 | I81: 43.3070638 | J81: 37.28800308 | K81: 34.51015035 | L81: 24.92439086 | N81: STO_FUEL_EL | O81: NO | P81: =_Cp_W/1000*(I81*[0]!_V_sto_4+J81*_V_sto_3+K81*_V_sto_2+L81*_V_sto_1) -> 8.121717269
A82: 65 | B82: 0 | C82: 0.04615463307 | D82: 0 | E82: 0 | G82: 0 | H82: 0 | I82: 43.10812141 | J82: 37.0890607 | K82: 34.31120797 | L82: 24.72544847 | N82: STO_FUEL_EL | O82: NO | P82: =_Cp_W/1000*(I82*[0]!_V_sto_4+J82*_V_sto_3+K82*_V_sto_2+L82*_V_sto_1) -> 8.075562636
A83: 66 | B83: 0 | C83: 0.04508495741 | D83: 0 | E83: 0 | G83: 0.105 | H83: 0 | I83: 43.31486428 | J83: 36.73307116 | K83: 33.55903061 | L83: 23.79055614 | N83: STO_FUEL_EL | O83: NO | P83: =_Cp_W/1000*(I83*[0]!_V_sto_4+J83*_V_sto_3+K83*_V_sto_2+L83*_V_sto_1) -> 7.969056286
A84: 67 | B84: 0 | C84: 0.04403492615 | D84: 0 | E84: 0 | G84: 0.105 | H84: 0 | I84: 43.51153321 | J84: 36.35977086 | K84: 32.80449923 | L84: 22.91912612 | N84: STO_FUEL_EL | O84: NO | P84: =_Cp_W/1000*(I84*[0]!_V_sto_4+J84*_V_sto_3+K84*_V_sto_2+L84*_V_sto_1) -> 7.864505907
A85: 68 | B85: 0 | C85: 0.04300494359 | D85: 0 | E85: 0 | G85: 0.105 | H85: 0 | I85: 43.69893098 | J85: 35.97015355 | K85: 32.05121614 | L85: 22.10645368 | N85: STO_FUEL_EL | O85: NO | P85: =_Cp_W/1000*(I85*[0]!_V_sto_4+J85*_V_sto_3+K85*_V_sto_2+L85*_V_sto_1) -> 7.761951752
A86: 69 | B86: 0 | C86: 0.03850358578 | D86: 0 | E86: 0 | G86: 0.735 | H86: 0 | I86: 46.05197188 | J86: 34.23749987 | K86: 27.90959326 | L86: 17.90019083 | N86: STO_FUEL_EL | O86: NO | P86: =_Cp_W/1000*(I86*[0]!_V_sto_4+J86*_V_sto_3+K86*_V_sto_2+L86*_V_sto_1) -> 7.313756839
A87: 70 | B87: 0 | C87: -0.006920633626 | D87: 0 | E87: 0 | G87: 3.71 | H87: 0 | I87: 12.02983032 | J87: 12.02983032 | K87: 12.02983032 | L87: 12.02983032 | N87: STO_FUEL_EL | O87: NO | P87: =_Cp_W/1000*(I87*[0]!_V_sto_4+J87*_V_sto_3+K87*_V_sto_2+L87*_V_sto_1) -> 2.790920634
A88: 71 | B88: 3.4 | C88: 0.02695587427 | D88: 0 | E88: 0 | G88: 0 | H88: 0 | I88: 26.56881362 | J88: 26.56881362 | K88: 26.56881362 | L88: 26.56881362 | N88: STO_FUEL_EL | O88: NO | P88: =_Cp_W/1000*(I88*[0]!_V_sto_4+J88*_V_sto_3+K88*_V_sto_2+L88*_V_sto_1) -> 6.163964759
A89: 72 | B89: 3.4 | C89: 0.06049553318 | D89: 0 | E89: 0 | G89: 0 | H89: 0 | I89: 40.96322942 | J89: 40.96322942 | K89: 40.96322942 | L89: 40.96322942 | N89: STO_FUEL_EL | O89: NO | P89: =_Cp_W/1000*(I89*[0]!_V_sto_4+J89*_V_sto_3+K89*_V_sto_2+L89*_V_sto_1) -> 9.503469226
A90: 73 | B90: 3.4 | C90: 0.09370169253 | D90: 0 | E90: 0 | G90: 0 | H90: 0 | I90: 55.21451523 | J90: 55.21451523 | K90: 55.21451523 | L90: 55.21451523 | N90: STO_FUEL_EL | O90: NO | P90: =_Cp_W/1000*(I90*[0]!_V_sto_4+J90*_V_sto_3+K90*_V_sto_2+L90*_V_sto_1) -> 12.80976753
A91: 74 | B91: 2.38557636 | C91: 0.1153438938 | D91: 0 | E91: 0 | G91: 0 | H91: 0 | I91: 65 | J91: 65 | K91: 65 | L91: 65 | N91: STO_FUEL_EL | O91: NO | P91: =_Cp_W/1000*(I91*[0]!_V_sto_4+J91*_V_sto_3+K91*_V_sto_2+L91*_V_sto_1) -> 15.08
A92: 75 | B92: 0.1153438938 | C92: 0.1153438938 | D92: 0 | E92: 0 | G92: 0 | H92: 0 | I92: 65 | J92: 65 | K92: 65 | L92: 65 | N92: STO_FUEL_EL | O92: NO | P92: =_Cp_W/1000*(I92*[0]!_V_sto_4+J92*_V_sto_3+K92*_V_sto_2+L92*_V_sto_1) -> 15.08
A93: 76 | B93: 0.1153438938 | C93: 0.1153438938 | D93: 0 | E93: 0 | G93: 0 | H93: 0 | I93: 65 | J93: 65 | K93: 65 | L93: 65 | N93: STO_FUEL_EL | O93: NO | P93: =_Cp_W/1000*(I93*[0]!_V_sto_4+J93*_V_sto_3+K93*_V_sto_2+L93*_V_sto_1) -> 15.08
A94: 77 | B94: 0.1153438938 | C94: 0.1153438938 | D94: 0 | E94: 0 | G94: 0 | H94: 0 | I94: 65 | J94: 65 | K94: 65 | L94: 65 | N94: STO_FUEL_EL | O94: NO | P94: =_Cp_W/1000*(I94*[0]!_V_sto_4+J94*_V_sto_3+K94*_V_sto_2+L94*_V_sto_1) -> 15.08
A95: 78 | B95: 0.1153438938 | C95: 0.1153438938 | D95: 0 | E95: 0 | G95: 0 | H95: 0 | I95: 65 | J95: 65 | K95: 65 | L95: 65 | N95: STO_FUEL_EL | O95: NO | P95: =_Cp_W/1000*(I95*[0]!_V_sto_4+J95*_V_sto_3+K95*_V_sto_2+L95*_V_sto_1) -> 15.08
A96: 79 | B96: 0.1153438938 | C96: 0.1153438938 | D96: 0 | E96: 0 | G96: 0 | H96: 0 | I96: 65 | J96: 65 | K96: 65 | L96: 65 | N96: STO_FUEL_EL | O96: NO | P96: =_Cp_W/1000*(I96*[0]!_V_sto_4+J96*_V_sto_3+K96*_V_sto_2+L96*_V_sto_1) -> 15.08
P97: =_Cp_W/1000*(I97*[0]!_V_sto_4+J97*_V_sto_3+K97*_V_sto_2+L97*_V_sto_1) -> 0
B98: =SUM(B88:B96) -> 13.16229583 | G98: =SUM(G73:G96) -> 11.645

Sheet History
B2: Date | C2: Version scope | D2: Changes, notes
B3: 2013-09-25 | C3: 1.1 | D3: Correction lines 23 and 44-48 (index misfit)
B4: 2013-09-27 | C4: 1.2 | D4: Adjustment of subscripts
B5: 2013-11-19 | C5: 1.21 | D5: Correction temperature volume 1et 2 Step4.1/ index of output series for volume 1-4 and adjustment of energy input
B6: 2013-12-30 | C6: 1.22 | D6: Data input profile M,S and L from Mandate M323 and Labelling Directive - Calculation procedure line D27 corrected

Sheet Flowchart

Sheet fsto_bac_acc
A5: Profile | B5: L | C5: M | D5: S | E5: standby
A6: Ecalculated | B6: =SUM(Output_series!$B$73:$B$97) -> 13.16229583 | C6: =+SUM(Output_series!$B$24:$B$47) -> 8.485621655 | D6: =SUM(Output_series!$B$47:$B$72) -> 4.308314704 | E6: =_V_sto_tot*_H_sto_tot*(_θ_sto_set_on-_θ_sto_amb)/10000 -> 2.306877875
A7: required | B7: =SUM(Output_series!$G$73:$G$97) -> 11.645 | C7: =+SUM(Output_series!$G$24:$G$47) -> 5.845 | D7: =SUM(Output_series!$G$48:$G$72) -> 2.1
A8: losses | B8: =SUM(Output_series!$C$73:$C$97) -> 1.589659579 | C8: =+SUM(Output_series!$C$25:$C$48) -> 2.121788679 | D8: =SUM(Output_series!$C$48:$C$72) -> 2.714880733
B9: =(B6-B7) -> 1.517295829 | C9: =(C6-C7) -> 2.640621655 | D9: =(D6-D7) -> 2.208314704 | E9: =E6 -> 2.306877875
A10: f_sto_bac_acc | B10: =MIN(1,B$9/$E$9) -> 0.6577269847 | C10: =MIN(1,C$8/$E$9) -> 0.9197663657 | D10: =MIN(1,D$9/$E$9) -> 0.9572742135 | E10: 1
B11: =B7+B8 -> 13.23465958 | C11: =C7+C8 -> 7.966788679 | D11: =D7+D8 -> 4.814880733
